Workbook

Sheet Orçamento
O1: ORÇAMENTO PADRÃO v3.2.10.1
O4: UNIDADE ESCOLAR | V4: CÓDIGO INEP
O5: CENTRO DE ENSINO EM PERÍODO INTEGRAL PROFESSORA IZABEL CHRISTINA DE SOUSA ORTIZ | V5: 52103498
A7: Nmax | M7: Ajustar altura? | O7: OBRA | S7: DATA | V7: CIDADE
A8: =MAX($C$19:$C$240) -> 4 | M8: SIM | O8: REFORMA E AMPLIAÇÃO | S8: 2020-03-19 | V8: FORMOSA
M10: =IF($M$8="MANUAL","DESPROTEJA A PLANILHA PARA FORMATAR","") ->  | O10: CRE | R10: ENDEREÇO | S10: REFERÊNCIA AGETOP | V10: REFERÊNCIA SINAPI
O11: FORMOSA | R11: RUA 65, PRAÇA N°04 S/N, PQ LAGO DE FORMOSA, CEP:73813-872 | S11: ABR/19 | T11: DESONERADA | V11: NOV/19 | W11: DESONERADA
O13: ÁREA EXISTENTE (M²) | R13: ÁREA A CONSTRUIR (M²) | S13: ÁREA A DEMOLIR (M²) | V13: ÁREA TOTAL CONSTRUÍDA (M²)
O14: 2958.55 | R14: 2.24 | S14: 0 | V14: 2960.79
L16: FILTRO | O16: PLANILHA ORÇAMENTÁRIA
A17: Nível E | B17: Save Nivel | C17: Nível C | D17: Altura | E17: n1 | F17: n2 | G17: n3 | H17: n4 | I17: n5 | J17: Czero | K17: Cnível | L17: ↓ | M17: Nível | N17: Nível Corrigido | O17: ITEM | P17: TABELA | Q17: CODIGO | R17: DESCRIÇÃO DOS SERVIÇOS | S17: UNID | T17: QUANT | U17: MAT | V17: MO | W17: T.SERVIÇO | X17: OBSERVAÇÕES¹
A18: =CHOOSE(1+LOG(1+2*(ORÇAMENTO.Nivel="Nível 1")+4*(ORÇAMENTO.Nivel="Nível 2")+8*(ORÇAMENTO.Nivel="Nível 3")+16*(ORÇAMENTO.Nivel="Nível 4")+32*(ORÇAMENTO.Nivel="Serviço"),2),0,1,2,3,4,"S") -> S | B18: =IF(OR(C18="s",C18=0),OFFSET(B18,-1,0),C18) -> Save Nivel | C18: =IF(OFFSET(C18,-1,0)="L",1,IF(OFFSET(C18,-1,0)=1,2,IF(OR(A18="s",A18=0),"S",IF(AND(OFFSET(C18,-1,0)=2,A18=4),3,IF(AND(OR(OFFSET(C18,-1,0)="s",OFFSET(C18,-1,0)=0),A18<>"s",A18>OFFSET(B18,-1,0)),OFFSET(B18,-1,0),A18))))) -> S | D18: =IF(OR(C18="S",C18=0),0,IF(ISERROR(K18),J18,SMALL(J18:K18,1))) -> 0 | E18: =IF($C18=1,OFFSET(E18,-1,0)+1,OFFSET(E18,-1,0)) -> n1 | F18: =IF($C18=1,0,IF($C18=2,OFFSET(F18,-1,0)+1,OFFSET(F18,-1,0))) -> n2 | G18: =IF(AND($C18<=2,$C18<>0),0,IF($C18=3,OFFSET(G18,-1,0)+1,OFFSET(G18,-1,0))) -> n3 | H18: =IF(AND($C18<=3,$C18<>0),0,IF($C18=4,OFFSET(H18,-1,0)+1,OFFSET(H18,-1,0))) -> n4 | I18: =IF(AND($C18<=4,$C18<>0),0,IF(AND($C18="S",$W18>0),OFFSET(I18,-1,0)+1,OFFSET(I18,-1,0))) -> n5 | J18: =IF(OR($C18="S",$C18=0),0,MATCH(0,OFFSET($D18,1,$C18,ROW($C$240)-ROW($C18)),0)) -> 0 | K18: =IF(OR($C18="S",$C18=0),0,MATCH(OFFSET($D18,0,$C18)+1,OFFSET($D18,1,$C18,ROW($C$240)-ROW($C18)),0)) -> 0 | L18: =IF(OR(W18>0,$C18=1),"F","") ->  | M18: Serviço | N18: =CHOOSE(1+LOG(1+2*(C18=1)+4*(C18=2)+8*(C18=3)+16*(C18=4)+32*(C18="S"),2),"","Nível 1","Nível 2","Nível 3","Nível 4","Serviço") -> Serviço | O18: - | P18: SINAPI | R18: (sem código) | S18: - | U18: 0 | V18: 0 | W18: 0
A19: 0 | C19: L | D19: =COUNTA(OFFSET(D19,1,0):D$240) -> 220 | E19: =LEFT(O20,1)-1 -> 0 | L19: F | M19: LOTE | N19: LOTE | O19: REFORMA - CENTRO DE ENSINO EM PERÍODO INTEGRAL PROFESSORA IZABEL CHRISTINA DE SOUSA ORTIZ | W19: 30130.23
A20: =CHOOSE(1+LOG(1+2*(ORÇAMENTO.Nivel="Nível 1")+4*(ORÇAMENTO.Nivel="Nível 2")+8*(ORÇAMENTO.Nivel="Nível 3")+16*(ORÇAMENTO.Nivel="Nível 4")+32*(ORÇAMENTO.Nivel="Serviço"),2),0,1,2,3,4,"S") -> 1 | B20: =IF(OR(C20="s",C20=0),OFFSET(B20,-1,0),C20) -> 1 | C20: =IF(OFFSET(C20,-1,0)="L",1,IF(OFFSET(C20,-1,0)=1,2,IF(OR(A20="s",A20=0),"S",IF(AND(OFFSET(C20,-1,0)=2,A20=4),3,IF(AND(OR(OFFSET(C20,-1,0)="s",OFFSET(C20,-1,0)=0),A20<>"s",A20>OFFSET(B20,-1,0)),OFFSET(B20,-1,0),A20))))) -> 1 | D20: =IF(OR(C20="S",C20=0),0,IF(ISERROR(K20),J20,SMALL(J20:K20,1))) -> 220 | E20: =IF($C20=1,OFFSET(E20,-1,0)+1,OFFSET(E20,-1,0)) -> 1 | F20: =IF($C20=1,0,IF($C20=2,OFFSET(F20,-1,0)+1,OFFSET(F20,-1,0))) -> 0 | G20: =IF(AND($C20<=2,$C20<>0),0,IF($C20=3,OFFSET(G20,-1,0)+1,OFFSET(G20,-1,0))) -> 0 | H20: =IF(AND($C20<=3,$C20<>0),0,IF($C20=4,OFFSET(H20,-1,0)+1,OFFSET(H20,-1,0))) -> 0 | I20: =IF(AND($C20<=4,$C20<>0),0,IF(AND($C20="S",$W20>0),OFFSET(I20,-1,0)+1,OFFSET(I20,-1,0))) -> 0 | J20: =IF(OR($C20="S",$C20=0),0,MATCH(0,OFFSET($D20,1,$C20,ROW($C$240)-ROW($C20)),0)) -> 220 | K20: =IF(OR($C20="S",$C20=0),0,MATCH(OFFSET($D20,0,$C20)+1,OFFSET($D20,1,$C20,ROW($C$240)-ROW($C20)),0)) ->  | L20: =IF(OR(W20>0,$C20=1),"F","") -> F | M20: Nível 1 | N20: =CHOOSE(1+LOG(1+2*(C20=1)+4*(C20=2)+8*(C20=3)+16*(C20=4)+32*(C20="S"),2),"","Nível 1","Nível 2","Nível 3","Nível 4","Serviço") -> Nível 1 | O20: 1. | P20: AGETOP | R20: REFORMA
A21: 2 | B21: =IF(OR(C21="s",C21=0),OFFSET(B21,-1,0),C21) -> 2 | C21: =IF(OFFSET(C21,-1,0)="L",1,IF(OFFSET(C21,-1,0)=1,2,IF(OR(A21="s",A21=0),"S",IF(AND(OFFSET(C21,-1,0)=2,A21=4),3,IF(AND(OR(OFFSET(C21,-1,0)="s",OFFSET(C21,-1,0)=0),A21<>"s",A21>OFFSET(B21,-1,0)),OFFSET(B21,-1,0),A21))))) -> 2 | D21: =IF(OR(C21="S",C21=0),0,IF(ISERROR(K21),J21,SMALL(J21:K21,1))) -> 19 | E21: =IF($C21=1,OFFSET(E21,-1,0)+1,OFFSET(E21,-1,0)) -> 1 | F21: =IF($C21=1,0,IF($C21=2,OFFSET(F21,-1,0)+1,OFFSET(F21,-1,0))) -> 1 | G21: =IF(AND($C21<=2,$C21<>0),0,IF($C21=3,OFFSET(G21,-1,0)+1,OFFSET(G21,-1,0))) -> 0 | H21: =IF(AND($C21<=3,$C21<>0),0,IF($C21=4,OFFSET(H21,-1,0)+1,OFFSET(H21,-1,0))) -> 0 | I21: =IF(AND($C21<=4,$C21<>0),0,IF(AND($C21="S",$W21>0),OFFSET(I21,-1,0)+1,OFFSET(I21,-1,0))) -> 0 | J21: 219 | K21: 19 | L21: =IF(OR(W21>0,$C21=1),"F","") ->  | M21: Nível 2 | N21: =CHOOSE(1+LOG(1+2*(C21=1)+4*(C21=2)+8*(C21=3)+16*(C21=4)+32*(C21="S"),2),"","Nível 1","Nível 2","Nível 3","Nível 4","Serviço") -> Nível 2 | O21: 1.1. | P21: AGETOP | R21: SERVIÇOS PRELIMINARES
A22: 3 | B22: =IF(OR(C22="s",C22=0),OFFSET(B22,-1,0),C22) -> 3 | C22: =IF(OFFSET(C22,-1,0)="L",1,IF(OFFSET(C22,-1,0)=1,2,IF(OR(A22="s",A22=0),"S",IF(AND(OFFSET(C22,-1,0)=2,A22=4),3,IF(AND(OR(OFFSET(C22,-1,0)="s",OFFSET(C22,-1,0)=0),A22<>"s",A22>OFFSET(B22,-1,0)),OFFSET(B22,-1,0),A22))))) -> 3 | D22: =IF(OR(C22="S",C22=0),0,IF(ISERROR(K22),J22,SMALL(J22:K22,1))) -> 3 | E22: =IF($C22=1,OFFSET(E22,-1,0)+1,OFFSET(E22,-1,0)) -> 1 | F22: =IF($C22=1,0,IF($C22=2,OFFSET(F22,-1,0)+1,OFFSET(F22,-1,0))) -> 1 | G22: =IF(AND($C22<=2,$C22<>0),0,IF($C22=3,OFFSET(G22,-1,0)+1,OFFSET(G22,-1,0))) -> 1 | H22: =IF(AND($C22<=3,$C22<>0),0,IF($C22=4,OFFSET(H22,-1,0)+1,OFFSET(H22,-1,0))) -> 0 | I22: =IF(AND($C22<=4,$C22<>0),0,IF(AND($C22="S",$W22>0),OFFSET(I22,-1,0)+1,OFFSET(I22,-1,0))) -> 0 | J22: 18 | K22: 3 | L22: =IF(OR(W22>0,$C22=1),"F","") ->  | M22: Nível 3 | N22: =CHOOSE(1+LOG(1+2*(C22=1)+4*(C22=2)+8*(C22=3)+16*(C22=4)+32*(C22="S"),2),"","Nível 1","Nível 2","Nível 3","Nível 4","Serviço") -> Nível 3 | O22: 1.1.1. | P22: SINAPI | R22: SANITÁRIO PROFESSORES | S22: -
A23: S | B23: 3 | C23: S | D23: 0 | E23: 1 | F23: 1 | G23: 1 | H23: 0 | I23: 0 | J23: 0 | K23: 0 | M23: Serviço | N23: Serviço | O23: 1.1.1.0.1. | P23: AGETOP | Q23: 20109 | R23: DEM.PISO CIMENT.SOBRE LASTRO CONC.C/TR.ATE CB. E CARGA | S23: m2 | T23: 4.4
A24: S | B24: 3 | C24: S | D24: 0 | E24: 1 | F24: 1 | G24: 1 | H24: 0 | I24: 0 | J24: 0 | K24: 0 | M24: Serviço | N24: Serviço | O24: 1.1.1.0.2. | P24: SINAPI | Q24: 97645 | R24: REMOÇÃO DE JANELAS, DE FORMA MANUAL, SEM REAPROVEITAMENTO. AF_12/2017 | S24: M2 | T24: 3.87
A25: 3 | B25: 3 | C25: 3 | D25: 2 | E25: 1 | F25: 1 | G25: 2 | H25: 0 | I25: 0 | J25: 15 | K25: 2 | M25: Nível 3 | N25: Nível 3 | O25: 1.1.2. | P25: SINAPI | R25: SANITÁRIO LABORATÓRIO | S25: -
A26: S | B26: 3 | C26: S | D26: 0 | E26: 1 | F26: 1 | G26: 2 | H26: 0 | I26: 0 | J26: 0 | K26: 0 | M26: Serviço | N26: Serviço | O26: 1.1.2.0.1. | P26: SINAPI | Q26: 97631 | R26: DEMOLIÇÃO DE ARGAMASSAS, DE FORMA MANUAL, SEM REAPROVEITAMENTO. AF_12/2017 | S26: M2 | T26: 1.08
A27: 3 | B27: 3 | C27: 3 | D27: 2 | E27: 1 | F27: 1 | G27: 3 | H27: 0 | I27: 0 | J27: 13 | K27: 2 | M27: Nível 3 | N27: Nível 3 | O27: 1.1.3. | P27: SINAPI | R27: COZINHA | S27: -
A28: S | B28: 3 | C28: S | D28: 0 | E28: 1 | F28: 1 | G28: 3 | H28: 0 | I28: 0 | J28: 0 | K28: 0 | M28: Serviço | N28: Serviço | O28: 1.1.3.0.1. | P28: AGETOP | Q28: 20139 | R28: DEMOLIÇAO DE BANCADAS C/ TRANSP. ATÉ CB. E CARGA | S28: m2 | T28: 1.38
A29: 3 | B29: 3 | C29: 3 | D29: 2 | E29: 1 | F29: 1 | G29: 4 | H29: 0 | I29: 0 | J29: 11 | K29: 2 | M29: Nível 3 | N29: Nível 3 | O29: 1.1.4. | P29: SINAPI | R29: INST. ELÉTRICAS | S29: -
A30: S | B30: 3 | C30: S | D30: 0 | E30: 1 | F30: 1 | G30: 4 | H30: 0 | I30: 0 | J30: 0 | K30: 0 | M30: Serviço | N30: Serviço | O30: 1.1.4.0.1. | P30: AGETOP | Q30: 20162 | R30: DEMOLIÇÃO DAS INSTALAÇÕES ELÉTRICAS E AFINS C/ TRANSP. ATÉ CB. E CARGA | S30: H | T30: 2
A31: 3 | B31: 3 | C31: 3 | D31: 2 | E31: 1 | F31: 1 | G31: 5 | H31: 0 | I31: 0 | J31: 9 | K31: 2 | M31: Nível 3 | N31: Nível 3 | O31: 1.1.5. | P31: SINAPI | R31: CENTRAL DE GÁS | S31: -
A32: S | B32: 3 | C32: S | D32: 0 | E32: 1 | F32: 1 | G32: 5 | H32: 0 | I32: 0 | J32: 0 | K32: 0 | M32: Serviço | N32: Serviço | O32: 1.1.5.0.1. | P32: AGETOP | Q32: 20121 | R32: DEM. MANUAL EM CONCR.SIMPLES C/TR.ATE CB.E CARGA (O.C.) | S32: m3 | T32: 0.06
A33: 3 | B33: 3 | C33: 3 | D33: 3 | E33: 1 | F33: 1 | G33: 6 | H33: 0 | I33: 0 | J33: 7 | K33: 3 | M33: Nível 3 | N33: Nível 3 | O33: 1.1.6. | P33: SINAPI | R33: INST. HIDROSSANITÁRIAS | S33: -
A34: S | B34: 3 | C34: S | D34: 0 | E34: 1 | F34: 1 | G34: 6 | H34: 0 | I34: 0 | J34: 0 | K34: 0 | M34: Serviço | N34: Serviço | O34: 1.1.6.0.1. | P34: AGETOP | Q34: 20121 | R34: DEM. MANUAL EM CONCR.SIMPLES C/TR.ATE CB.E CARGA (O.C.) | S34: m3 | T34: 1.1
A35: =CHOOSE(1+LOG(1+2*(ORÇAMENTO.Nivel="Nível 1")+4*(ORÇAMENTO.Nivel="Nível 2")+8*(ORÇAMENTO.Nivel="Nível 3")+16*(ORÇAMENTO.Nivel="Nível 4")+32*(ORÇAMENTO.Nivel="Serviço"),2),0,1,2,3,4,"S") -> S | B35: =IF(OR(C35="s",C35=0),OFFSET(B35,-1,0),C35) -> 3 | C35: =IF(OFFSET(C35,-1,0)="L",1,IF(OFFSET(C35,-1,0)=1,2,IF(OR(A35="s",A35=0),"S",IF(AND(OFFSET(C35,-1,0)=2,A35=4),3,IF(AND(OR(OFFSET(C35,-1,0)="s",OFFSET(C35,-1,0)=0),A35<>"s",A35>OFFSET(B35,-1,0)),OFFSET(B35,-1,0),A35))))) -> S | D35: =IF(OR(C35="S",C35=0),0,IF(ISERROR(K35),J35,SMALL(J35:K35,1))) -> 0 | E35: =IF($C35=1,OFFSET(E35,-1,0)+1,OFFSET(E35,-1,0)) -> 1 | F35: =IF($C35=1,0,IF($C35=2,OFFSET(F35,-1,0)+1,OFFSET(F35,-1,0))) -> 1 | G35: =IF(AND($C35<=2,$C35<>0),0,IF($C35=3,OFFSET(G35,-1,0)+1,OFFSET(G35,-1,0))) -> 6 | H35: =IF(AND($C35<=3,$C35<>0),0,IF($C35=4,OFFSET(H35,-1,0)+1,OFFSET(H35,-1,0))) -> 0 | I35: =IF(AND($C35<=4,$C35<>0),0,IF(AND($C35="S",$W35>0),OFFSET(I35,-1,0)+1,OFFSET(I35,-1,0))) -> 0 | J35: 0 | K35: 0 | L35: =IF(OR(W35>0,$C35=1),"F","") ->  | M35: Serviço | N35: =CHOOSE(1+LOG(1+2*(C35=1)+4*(C35=2)+8*(C35=3)+16*(C35=4)+32*(C35="S"),2),"","Nível 1","Nível 2","Nível 3","Nível 4","Serviço") -> Serviço | O35: 1.1.6.0.2. | P35: AGETOP | Q35: 20109 | R35: DEM.PISO CIMENT.SOBRE LASTRO CONC.C/TR.ATE CB. E CARGA | S35: m2 | T35: 0.14
A36: =CHOOSE(1+LOG(1+2*(ORÇAMENTO.Nivel="Nível 1")+4*(ORÇAMENTO.Nivel="Nível 2")+8*(ORÇAMENTO.Nivel="Nível 3")+16*(ORÇAMENTO.Nivel="Nível 4")+32*(ORÇAMENTO.Nivel="Serviço"),2),0,1,2,3,4,"S") -> 3 | B36: =IF(OR(C36="s",C36=0),OFFSET(B36,-1,0),C36) -> 3 | C36: =IF(OFFSET(C36,-1,0)="L",1,IF(OFFSET(C36,-1,0)=1,2,IF(OR(A36="s",A36=0),"S",IF(AND(OFFSET(C36,-1,0)=2,A36=4),3,IF(AND(OR(OFFSET(C36,-1,0)="s",OFFSET(C36,-1,0)=0),A36<>"s",A36>OFFSET(B36,-1,0)),OFFSET(B36,-1,0),A36))))) -> 3 | D36: =IF(OR(C36="S",C36=0),0,IF(ISERROR(K36),J36,SMALL(J36:K36,1))) -> 2 | E36: =IF($C36=1,OFFSET(E36,-1,0)+1,OFFSET(E36,-1,0)) -> 1 | F36: =IF($C36=1,0,IF($C36=2,OFFSET(F36,-1,0)+1,OFFSET(F36,-1,0))) -> 1 | G36: =IF(AND($C36<=2,$C36<>0),0,IF($C36=3,OFFSET(G36,-1,0)+1,OFFSET(G36,-1,0))) -> 7 | H36: =IF(AND($C36<=3,$C36<>0),0,IF($C36=4,OFFSET(H36,-1,0)+1,OFFSET(H36,-1,0))) -> 0 | I36: =IF(AND($C36<=4,$C36<>0),0,IF(AND($C36="S",$W36>0),OFFSET(I36,-1,0)+1,OFFSET(I36,-1,0))) -> 0 | J36: 4 | K36: 2 | L36: =IF(OR(W36>0,$C36=1),"F","") ->  | M36: Nível 3 | N36: =CHOOSE(1+LOG(1+2*(C36=1)+4*(C36=2)+8*(C36=3)+16*(C36=4)+32*(C36="S"),2),"","Nível 1","Nível 2","Nível 3","Nível 4","Serviço") -> Nível 3 | O36: 1.1.7. | P36: SINAPI | R36: FUNDAÇÃO | S36: -
A37: =CHOOSE(1+LOG(1+2*(ORÇAMENTO.Nivel="Nível 1")+4*(ORÇAMENTO.Nivel="Nível 2")+8*(ORÇAMENTO.Nivel="Nível 3")+16*(ORÇAMENTO.Nivel="Nível 4")+32*(ORÇAMENTO.Nivel="Serviço"),2),0,1,2,3,4,"S") -> S | B37: 3 | C37: S | D37: 0 | E37: 1 | F37: 1 | G37: 7 | H37: 0 | I37: 0 | J37: 0 | K37: 0 | M37: Serviço | N37: Serviço | O37: 1.1.7.0.1. | P37: AGETOP | Q37: 20702 | R37: LOCAÇÃO DE OBRAS DE PEQUENO PORTE COM CAVALETE, INCLUSO PINTURA ( FACE INTERNA DO SARRAFO 10CM) E PIQUETE COM TESTEMUNHA | S37: m2 | T37: 3.32
A38: 3 | B38: =IF(OR(C38="s",C38=0),OFFSET(B38,-1,0),C38) -> 3 | C38: =IF(OFFSET(C38,-1,0)="L",1,IF(OFFSET(C38,-1,0)=1,2,IF(OR(A38="s",A38=0),"S",IF(AND(OFFSET(C38,-1,0)=2,A38=4),3,IF(AND(OR(OFFSET(C38,-1,0)="s",OFFSET(C38,-1,0)=0),A38<>"s",A38>OFFSET(B38,-1,0)),OFFSET(B38,-1,0),A38))))) -> 3 | D38: =IF(OR(C38="S",C38=0),0,IF(ISERROR(K38),J38,SMALL(J38:K38,1))) -> 2 | E38: =IF($C38=1,OFFSET(E38,-1,0)+1,OFFSET(E38,-1,0)) -> 1 | F38: =IF($C38=1,0,IF($C38=2,OFFSET(F38,-1,0)+1,OFFSET(F38,-1,0))) -> 1 | G38: =IF(AND($C38<=2,$C38<>0),0,IF($C38=3,OFFSET(G38,-1,0)+1,OFFSET(G38,-1,0))) -> 8 | H38: =IF(AND($C38<=3,$C38<>0),0,IF($C38=4,OFFSET(H38,-1,0)+1,OFFSET(H38,-1,0))) -> 0 | I38: =IF(AND($C38<=4,$C38<>0),0,IF(AND($C38="S",$W38>0),OFFSET(I38,-1,0)+1,OFFSET(I38,-1,0))) -> 0 | J38: 2 | L38: =IF(OR(W38>0,$C38=1),"F","") ->  | M38: Nível 3 | N38: =CHOOSE(1+LOG(1+2*(C38=1)+4*(C38=2)+8*(C38=3)+16*(C38=4)+32*(C38="S"),2),"","Nível 1","Nível 2","Nível 3","Nível 4","Serviço") -> Nível 3 | O38: 1.1.8. | P38: SINAPI | R38: OUTROS | S38: -
A39: S | B39: =IF(OR(C39="s",C39=0),OFFSET(B39,-1,0),C39) -> 3 | C39: =IF(OFFSET(C39,-1,0)="L",1,IF(OFFSET(C39,-1,0)=1,2,IF(OR(A39="s",A39=0),"S",IF(AND(OFFSET(C39,-1,0)=2,A39=4),3,IF(AND(OR(OFFSET(C39,-1,0)="s",OFFSET(C39,-1,0)=0),A39<>"s",A39>OFFSET(B39,-1,0)),OFFSET(B39,-1,0),A39))))) -> S | D39: =IF(OR(C39="S",C39=0),0,IF(ISERROR(K39),J39,SMALL(J39:K39,1))) -> 0 | E39: =IF($C39=1,OFFSET(E39,-1,0)+1,OFFSET(E39,-1,0)) -> 1 | F39: =IF($C39=1,0,IF($C39=2,OFFSET(F39,-1,0)+1,OFFSET(F39,-1,0))) -> 1 | G39: =IF(AND($C39<=2,$C39<>0),0,IF($C39=3,OFFSET(G39,-1,0)+1,OFFSET(G39,-1,0))) -> 8 | H39: =IF(AND($C39<=3,$C39<>0),0,IF($C39=4,OFFSET(H39,-1,0)+1,OFFSET(H39,-1,0))) -> 0 | I39: =IF(AND($C39<=4,$C39<>0),0,IF(AND($C39="S",$W39>0),OFFSET(I39,-1,0)+1,OFFSET(I39,-1,0))) -> 0 | J39: 0 | K39: 0 | L39: =IF(OR(W39>0,$C39=1),"F","") ->  | M39: Serviço | N39: =CHOOSE(1+LOG(1+2*(C39=1)+4*(C39=2)+8*(C39=3)+16*(C39=4)+32*(C39="S"),2),"","Nível 1","Nível 2","Nível 3","Nível 4","Serviço") -> Serviço | O39: 1.1.8.0.1. | P39: SINAPI | Q39: 74209/1 | R39: PLACA DE OBRA EM CHAPA DE ACO GALVANIZADO | S39: M2 | T39: 7.5
A40: 2 | B40: 2 | C40: 2 | D40: 3 | E40: 1 | F40: 2 | G40: 0 | H40: 0 | I40: 0 | J40: 200 | K40: 3 | M40: Nível 2 | N40: Nível 2 | O40: 1.2. | P40: AGETOP | R40: TRANSPORTES | S40: -
A41: S | B41: 2 | C41: S | D41: 0 | E41: 1 | F41: 2 | G41: 0 | H41: 0 | I41: 0 | J41: 0 | K41: 0 | M41: Serviço | N41: Serviço | O41: 1.2.0.0.1. | P41: SINAPI | Q41: 72900 | R41: TRANSPORTE DE ENTULHO COM CAMINHAO BASCULANTE 6 M3, RODOVIA PAVIMENTADA, DMT 0,5 A 1,0 KM | S41: M3 | T41: 1.5487
A42: S | B42: 2 | C42: S | D42: 0 | E42: 1 | F42: 2 | G42: 0 | H42: 0 | I42: 0 | J42: 0 | K42: 0 | M42: Serviço | N42: Serviço | O42: 1.2.0.0.2. | P42: SINAPI | Q42: 72897 | R42: CARGA MANUAL DE ENTULHO EM CAMINHAO BASCULANTE 6 M3 | S42: M3 | T42: 1.5487
A43: 2 | B43: 2 | C43: 2 | D43: 11 | E43: 1 | F43: 3 | G43: 0 | H43: 0 | I43: 0 | J43: 197 | K43: 11 | M43: Nível 2 | N43: Nível 2 | O43: 1.3. | P43: AGETOP | R43: SERVIÇO EM TERRA | S43: -
A44: 3 | B44: 3 | C44: 3 | D44: 3 | E44: 1 | F44: 3 | G44: 1 | H44: 0 | I44: 0 | J44: 10 | K44: 3 | M44: Nível 3 | N44: Nível 3 | O44: 1.3.1. | P44: SINAPI | R44: CENTRAL DE GÁS | S44: -
A45: S | B45: 3 | C45: S | D45: 0 | E45: 1 | F45: 3 | G45: 1 | H45: 0 | I45: 0 | J45: 0 | K45: 0 | M45: Serviço | N45: Serviço | O45: 1.3.1.0.1. | P45: SINAPI | Q45: 93358 | R45: ESCAVAÇÃO MANUAL DE VALA COM PROFUNDIDADE MENOR OU IGUAL A 1,30 M. AF_03/2016 | S45: M3 | T45: 0.31
A46: S | B46: 3 | C46: S | D46: 0 | E46: 1 | F46: 3 | G46: 1 | H46: 0 | I46: 0 | J46: 0 | K46: 0 | M46: Serviço | N46: Serviço | O46: 1.3.1.0.2. | P46: SINAPI | Q46: 96995 | R46: REATERRO MANUAL APILOADO COM SOQUETE. AF_10/2017 | S46: M3 | T46: 0.31
A47: 3 | B47: 3 | C47: 3 | D47: 3 | E47: 1 | F47: 3 | G47: 2 | H47: 0 | I47: 0 | J47: 7 | K47: 3 | M47: Nível 3 | N47: Nível 3 | O47: 1.3.2. | P47: SINAPI | R47: INST. HIDROSSANITÁRIAS | S47: -
A48: S | B48: 3 | C48: S | D48: 0 | E48: 1 | F48: 3 | G48: 2 | H48: 0 | I48: 0 | J48: 0 | K48: 0 | M48: Serviço | N48: Serviço | O48: 1.3.2.0.1. | P48: AGETOP | Q48: 40101 | R48: ESCAVACAO MANUAL DE VALAS < 1 MTS. (OBRAS CIVIS) | S48: m3 | T48: 11.7
A49: S | B49: 3 | C49: S | D49: 0 | E49: 1 | F49: 3 | G49: 2 | H49: 0 | I49: 0 | J49: 0 | K49: 0 | M49: Serviço | N49: Serviço | O49: 1.3.2.0.2. | P49: AGETOP | Q49: 40902 | R49: REATERRO COM APILOAMENTO | S49: m3 | T49: 11.7
A50: 3 | B50: 3 | C50: 3 | D50: 4 | E50: 1 | F50: 3 | G50: 3 | H50: 0 | I50: 0 | J50: 4 | K50: 99 | M50: Nível 3 | N50: Nível 3 | O50: 1.3.3. | P50: SINAPI | R50: FUNDAÇÃO | S50: -
A51: S | B51: 3 | C51: S | D51: 0 | E51: 1 | F51: 3 | G51: 3 | H51: 0 | I51: 0 | J51: 0 | K51: 0 | M51: Serviço | N51: Serviço | O51: 1.3.3.0.1. | P51: AGETOP | Q51: 50902 | R51: APILOAMENTO (BLOCOS/SAPATAS) | S51: m2 | T51: 1.94
A52: S | B52: 3 | C52: S | D52: 0 | E52: 1 | F52: 3 | G52: 3 | H52: 0 | I52: 0 | J52: =IF(OR($C52="S",$C52=0),0,MATCH(0,OFFSET($D52,1,$C52,ROW($C$240)-ROW($C52)),0)) -> 0 | K52: =IF(OR($C52="S",$C52=0),0,MATCH(OFFSET($D52,0,$C52)+1,OFFSET($D52,1,$C52,ROW($C$240)-ROW($C52)),0)) -> 0 | M52: Serviço | N52: Serviço | O52: 1.3.3.0.2. | P52: AGETOP | Q52: 50901 | R52: ESCAVACAO MANUAL DE VALAS (SAPATAS/BLOCOS) | S52: m3 | T52: 0.49
A53: S | B53: 3 | C53: S | D53: 0 | E53: 1 | F53: 3 | G53: 3 | H53: 0 | I53: 0 | J53: 0 | K53: 0 | M53: Serviço | N53: Serviço | O53: 1.3.3.0.3. | P53: SINAPI | Q53: 96995 | R53: REATERRO MANUAL APILOADO COM SOQUETE. AF_10/2017 | S53: M3 | T53: 0.32
A54: =CHOOSE(1+LOG(1+2*(ORÇAMENTO.Nivel="Nível 1")+4*(ORÇAMENTO.Nivel="Nível 2")+8*(ORÇAMENTO.Nivel="Nível 3")+16*(ORÇAMENTO.Nivel="Nível 4")+32*(ORÇAMENTO.Nivel="Serviço"),2),0,1,2,3,4,"S") -> 2 | B54: 2 | C54: 2 | D54: 5 | E54: 1 | F54: 4 | G54: 0 | H54: 0 | I54: 0 | J54: 186 | K54: 5 | M54: Nível 2 | N54: Nível 2 | O54: 1.4. | P54: AGETOP | R54: FUNDAÇÕES E SONDAGENS | S54: -
A55: 3 | B55: 3 | C55: 3 | D55: 4 | E55: 1 | F55: 4 | G55: 1 | H55: 0 | I55: 0 | J55: 4 | K55: 24 | M55: Nível 3 | N55: Nível 3 | O55: 1.4.1. | P55: SINAPI | R55: ESTACAS | S55: -
A56: S | B56: 3 | C56: S | D56: 0 | E56: 1 | F56: 4 | G56: 1 | H56: 0 | I56: 0 | J56: 0 | K56: 0 | M56: Serviço | N56: Serviço | O56: 1.4.1.0.1. | P56: SINAPI | Q56: 98230 | R56: ESTACA BROCA DE CONCRETO, DIÂMETRO DE 30 CM, PROFUNDIDADE DE ATÉ 3 M, ESCAVAÇÃO MANUAL COM TRADO CONCHA, NÃO ARMADA. AF_03/2018 | S56: M | T56: 4
A57: S | B57: 3 | C57: S | D57: 0 | E57: 1 | F57: 4 | G57: 1 | H57: 0 | I57: 0 | J57: 0 | K57: 0 | M57: Serviço | N57: Serviço | O57: 1.4.1.0.2. | P57: SINAPI | Q57: 96545 | R57: ARMAÇÃO DE BLOCO, VIGA BALDRAME OU SAPATA UTILIZANDO AÇO CA-50 DE 8 MM - MONTAGEM. AF_06/2017 | S57: KG | T57: 7
A58: S | B58: 3 | C58: S | D58: 0 | E58: 1 | F58: 4 | G58: 1 | H58: 0 | I58: 0 | J58: 0 | K58: 0 | M58: Serviço | N58: Serviço | O58: 1.4.1.0.3. | P58: SINAPI | Q58: 96543 | R58: ARMAÇÃO DE BLOCO, VIGA BALDRAME E SAPATA UTILIZANDO AÇO CA-60 DE 5 MM - MONTAGEM. AF_06/2017 | S58: KG | T58: 3
A59: 2 | B59: =IF(OR(C59="s",C59=0),OFFSET(B59,-1,0),C59) -> 2 | C59: =IF(OFFSET(C59,-1,0)="L",1,IF(OFFSET(C59,-1,0)=1,2,IF(OR(A59="s",A59=0),"S",IF(AND(OFFSET(C59,-1,0)=2,A59=4),3,IF(AND(OR(OFFSET(C59,-1,0)="s",OFFSET(C59,-1,0)=0),A59<>"s",A59>OFFSET(B59,-1,0)),OFFSET(B59,-1,0),A59))))) -> 2 | D59: =IF(OR(C59="S",C59=0),0,IF(ISERROR(K59),J59,SMALL(J59:K59,1))) -> 7 | E59: =IF($C59=1,OFFSET(E59,-1,0)+1,OFFSET(E59,-1,0)) -> 1 | F59: =IF($C59=1,0,IF($C59=2,OFFSET(F59,-1,0)+1,OFFSET(F59,-1,0))) -> 5 | G59: =IF(AND($C59<=2,$C59<>0),0,IF($C59=3,OFFSET(G59,-1,0)+1,OFFSET(G59,-1,0))) -> 0 | H59: =IF(AND($C59<=3,$C59<>0),0,IF($C59=4,OFFSET(H59,-1,0)+1,OFFSET(H59,-1,0))) -> 0 | I59: =IF(AND($C59<=4,$C59<>0),0,IF(AND($C59="S",$W59>0),OFFSET(I59,-1,0)+1,OFFSET(I59,-1,0))) -> 0 | J59: 181 | K59: 7 | L59: =IF(OR(W59>0,$C59=1),"F","") ->  | M59: Nível 2 | N59: =CHOOSE(1+LOG(1+2*(C59=1)+4*(C59=2)+8*(C59=3)+16*(C59=4)+32*(C59="S"),2),"","Nível 1","Nível 2","Nível 3","Nível 4","Serviço") -> Nível 2 | O59: 1.5. | P59: AGETOP | R59: ESTRUTURA | S59: -
A60: 3 | B60: 3 | C60: 3 | D60: 6 | E60: 1 | F60: 5 | G60: 1 | H60: 0 | I60: 0 | J60: 6 | K60: 19 | M60: Nível 3 | N60: Nível 3 | O60: 1.5.1. | P60: SINAPI | R60: VIGAS BALDRAMES | S60: -
A61: S | B61: 3 | C61: S | D61: 0 | E61: 1 | F61: 5 | G61: 1 | H61: 0 | I61: 0 | J61: 0 | K61: 0 | M61: Serviço | N61: Serviço | O61: 1.5.1.0.1. | P61: SINAPI | Q61: 92426 | R61: MONTAGEM E DESMONTAGEM DE FÔRMA DE PILARES RETANGULARES E ESTRUTURAS SIMILARES COM ÁREA MÉDIA DAS SEÇÕES MENOR OU IGUAL A 0,25 M², PÉ-DIREITO SIMPLES, EM CHAPA DE MADEIRA COMPENSADA RESINADA, 8 UTILIZAÇÕES. AF_12/2015 | S61: M2 | T61: 2.43
A62: S | B62: 3 | C62: S | D62: 0 | E62: 1 | F62: 5 | G62: 1 | H62: 0 | I62: 0 | J62: 0 | K62: 0 | M62: Serviço | N62: Serviço | O62: 1.5.1.0.2. | P62: SINAPI | Q62: 94964 | R62: CONCRETO FCK = 20MPA, TRAÇO 1:2,7:3 (CIMENTO/ AREIA MÉDIA/ BRITA 1) - PREPARO MECÂNICO COM BETONEIRA 400 L. AF_07/2016 | S62: M3 | T62: 0.17
A63: S | B63: 3 | C63: S | D63: 0 | E63: 1 | F63: 5 | G63: 1 | H63: 0 | I63: 0 | J63: 0 | K63: 0 | M63: Serviço | N63: Serviço | O63: 1.5.1.0.3. | P63: SINAPI | Q63: 92873 | R63: LANÇAMENTO COM USO DE BALDES, ADENSAMENTO E ACABAMENTO DE CONCRETO EM ESTRUTURAS. AF_12/2015 | S63: M3 | T63: 0.17
A64: S | B64: 3 | C64: S | D64: 0 | E64: 1 | F64: 5 | G64: 1 | H64: 0 | I64: 0 | J64: 0 | K64: 0 | M64: Serviço | N64: Serviço | O64: 1.5.1.0.4. | P64: SINAPI | Q64: 92777 | R64: ARMAÇÃO DE PILAR OU VIGA DE UMA ESTRUTURA CONVENCIONAL DE CONCRETO ARMADO EM UMA EDIFICAÇÃO TÉRREA OU SOBRADO UTILIZANDO AÇO CA-50 DE 8,0 MM - MONTAGEM. AF_12/2015 | S64: KG | T64: 9
A65: S | B65: 3 | C65: S | D65: 0 | E65: 1 | F65: 5 | G65: 1 | H65: 0 | I65: 0 | J65: 0 | K65: 0 | M65: Serviço | N65: Serviço | O65: 1.5.1.0.5. | P65: SINAPI | Q65: 92775 | R65: ARMAÇÃO DE PILAR OU VIGA DE UMA ESTRUTURA CONVENCIONAL DE CONCRETO ARMADO EM UMA EDIFICAÇÃO TÉRREA OU SOBRADO UTILIZANDO AÇO CA-60 DE 5,0 MM - MONTAGEM. AF_12/2015 | S65: KG | T65: 6
A66: =CHOOSE(1+LOG(1+2*(ORÇAMENTO.Nivel="Nível 1")+4*(ORÇAMENTO.Nivel="Nível 2")+8*(ORÇAMENTO.Nivel="Nível 3")+16*(ORÇAMENTO.Nivel="Nível 4")+32*(ORÇAMENTO.Nivel="Serviço"),2),0,1,2,3,4,"S") -> 2 | B66: =IF(OR(C66="s",C66=0),OFFSET(B66,-1,0),C66) -> 2 | C66: =IF(OFFSET(C66,-1,0)="L",1,IF(OFFSET(C66,-1,0)=1,2,IF(OR(A66="s",A66=0),"S",IF(AND(OFFSET(C66,-1,0)=2,A66=4),3,IF(AND(OR(OFFSET(C66,-1,0)="s",OFFSET(C66,-1,0)=0),A66<>"s",A66>OFFSET(B66,-1,0)),OFFSET(B66,-1,0),A66))))) -> 2 | D66: =IF(OR(C66="S",C66=0),0,IF(ISERROR(K66),J66,SMALL(J66:K66,1))) -> 23 | E66: =IF($C66=1,OFFSET(E66,-1,0)+1,OFFSET(E66,-1,0)) -> 1 | F66: =IF($C66=1,0,IF($C66=2,OFFSET(F66,-1,0)+1,OFFSET(F66,-1,0))) -> 6 | G66: =IF(AND($C66<=2,$C66<>0),0,IF($C66=3,OFFSET(G66,-1,0)+1,OFFSET(G66,-1,0))) -> 0 | H66: =IF(AND($C66<=3,$C66<>0),0,IF($C66=4,OFFSET(H66,-1,0)+1,OFFSET(H66,-1,0))) -> 0 | I66: =IF(AND($C66<=4,$C66<>0),0,IF(AND($C66="S",$W66>0),OFFSET(I66,-1,0)+1,OFFSET(I66,-1,0))) -> 0 | J66: 174 | K66: 23 | L66: =IF(OR(W66>0,$C66=1),"F","") ->  | M66: Nível 2 | N66: =CHOOSE(1+LOG(1+2*(C66=1)+4*(C66=2)+8*(C66=3)+16*(C66=4)+32*(C66="S"),2),"","Nível 1","Nível 2","Nível 3","Nível 4","Serviço") -> Nível 2 | O66: 1.6. | R66: INSTALAÇÕES ELÉTRICAS | S66: -
A67: 3 | B67: 3 | C67: 3 | D67: 12 | E67: 1 | F67: 6 | G67: 1 | H67: 0 | I67: 0 | J67: 22 | K67: 12 | M67: Nível 3 | N67: Nível 3 | O67: 1.6.1. | P67: SINAPI | R67: REFORMA | S67: -
A68: S | B68: 3 | C68: S | D68: 0 | E68: 1 | F68: 6 | G68: 1 | H68: 0 | I68: 0 | J68: 0 | K68: 0 | M68: Serviço | N68: Serviço | O68: 1.6.1.0.1. | P68: SINAPI | Q68: 91926 | R68: CABO DE COBRE FLEXÍVEL ISOLADO, 2,5 MM², ANTI-CHAMA 450/750 V, PARA CIRCUITOS TERMINAIS - FORNECIMENTO E INSTALAÇÃO. AF_12/2015 | S68: M | T68: 40
A69: S | B69: 3 | C69: S | D69: 0 | E69: 1 | F69: 6 | G69: 1 | H69: 0 | I69: 0 | J69: 0 | K69: 0 | M69: Serviço | N69: Serviço | O69: 1.6.1.0.2. | P69: SINAPI | Q69: 91937 | R69: CAIXA OCTOGONAL 3" X 3", PVC, INSTALADA EM LAJE - FORNECIMENTO E INSTALAÇÃO. AF_12/2015 | S69: UN | T69: 3
A70: S | B70: 3 | C70: S | D70: 0 | E70: 1 | F70: 6 | G70: 1 | H70: 0 | I70: 0 | J70: 0 | K70: 0 | M70: Serviço | N70: Serviço | O70: - | P70: SINAPI | Q70: 93043 | R70: (sem código) | S70: - | T70: 3
A71: S | B71: 3 | C71: S | D71: 0 | E71: 1 | F71: 6 | G71: 1 | H71: 0 | I71: 0 | J71: 0 | K71: 0 | M71: Serviço | N71: Serviço | O71: 1.6.1.0.3. | P71: SINAPI | Q71: 97592 | R71: LUMINÁRIA TIPO PLAFON, DE SOBREPOR, COM 1 LÂMPADA LED - FORNECIMENTO E INSTALAÇÃO. AF_11/2017 | S71: UN | T71: 3
A72: S | B72: 3 | C72: S | D72: 0 | E72: 1 | F72: 6 | G72: 1 | H72: 0 | I72: 0 | J72: 0 | K72: 0 | M72: Serviço | N72: Serviço | O72: 1.6.1.0.4. | P72: SINAPI | Q72: 91953 | R72: INTERRUPTOR SIMPLES (1 MÓDULO), 10A/250V, INCLUINDO SUPORTE E PLACA - FORNECIMENTO E INSTALAÇÃO. AF_12/2015 | S72: UN | T72: 3
A73: S | B73: 3 | C73: S | D73: 0 | E73: 1 | F73: 6 | G73: 1 | H73: 0 | I73: 0 | J73: 0 | K73: 0 | M73: Serviço | N73: Serviço | O73: 1.6.1.0.5. | P73: SINAPI | Q73: 91940 | R73: CAIXA RETANGULAR 4" X 2" MÉDIA (1,30 M DO PISO), PVC, INSTALADA EM PAREDE - FORNECIMENTO E INSTALAÇÃO. AF_12/2015 | S73: UN | T73: 3
A74: S | B74: 3 | C74: S | D74: 0 | E74: 1 | F74: 6 | G74: 1 | H74: 0 | I74: 0 | J74: 0 | K74: 0 | M74: Serviço | N74: Serviço | O74: 1.6.1.0.6. | P74: SINAPI | Q74: 91834 | R74: ELETRODUTO FLEXÍVEL CORRUGADO, PVC, DN 25 MM (3/4"), PARA CIRCUITOS TERMINAIS, INSTALADO EM FORRO - FORNECIMENTO E INSTALAÇÃO. AF_12/2015 | S74: M | T74: 6
A75: S | B75: 3 | C75: S | D75: 0 | E75: 1 | F75: 6 | G75: 1 | H75: 0 | I75: 0 | J75: 0 | K75: 0 | M75: Serviço | N75: Serviço | O75: 1.6.1.0.7. | P75: SINAPI | Q75: 91854 | R75: ELETRODUTO FLEXÍVEL CORRUGADO, PVC, DN 25 MM (3/4"), PARA CIRCUITOS TERMINAIS, INSTALADO EM PAREDE - FORNECIMENTO E INSTALAÇÃO. AF_12/2015 | S75: M | T75: 6
A76: S | B76: 3 | C76: S | D76: 0 | E76: 1 | F76: 6 | G76: 1 | H76: 0 | I76: 0 | J76: 0 | K76: 0 | M76: Serviço | N76: Serviço | O76: 1.6.1.0.8. | P76: AGETOP | Q76: 71331 | R76: FITA ISOLANTE, ROLO DE 20,00 M | S76: Un | T76: 2
A77: S | B77: 3 | C77: S | D77: 0 | E77: 1 | F77: 6 | G77: 1 | H77: 0 | I77: 0 | J77: 0 | K77: 0 | M77: Serviço | N77: Serviço | O77: 1.6.1.0.9. | P77: SINAPI | Q77: 91879 | R77: LUVA PARA ELETRODUTO, PVC, ROSCÁVEL, DN 25 MM (3/4"), PARA CIRCUITOS TERMINAIS, INSTALADA EM LAJE - FORNECIMENTO E INSTALAÇÃO. AF_12/2015 | S77: UN | T77: 2
A78: S | B78: 3 | C78: S | D78: 0 | E78: 1 | F78: 6 | G78: 1 | H78: 0 | I78: 0 | J78: 0 | K78: 0 | M78: Serviço | N78: Serviço | O78: 1.6.1.0.10. | P78: SINAPI | Q78: 91884 | R78: LUVA PARA ELETRODUTO, PVC, ROSCÁVEL, DN 25 MM (3/4"), PARA CIRCUITOS TERMINAIS, INSTALADA EM PAREDE - FORNECIMENTO E INSTALAÇÃO. AF_12/2015 | S78: UN | T78: 2
A79: 3 | B79: 3 | C79: 3 | D79: 10 | E79: 1 | F79: 6 | G79: 2 | H79: 0 | I79: 0 | J79: 10 | K79: 50 | M79: Nível 3 | N79: Nível 3 | O79: 1.6.2. | P79: SINAPI | R79: ILUMINAÇÃO DE EMERGÊNCIA | S79: -
A80: S | B80: 3 | C80: S | D80: 0 | E80: 1 | F80: 6 | G80: 2 | H80: 0 | I80: 0 | J80: 0 | K80: 0 | M80: Serviço | N80: Serviço | O80: 1.6.2.0.1. | P80: SINAPI | Q80: 91924 | R80: CABO DE COBRE FLEXÍVEL ISOLADO, 1,5 MM², ANTI-CHAMA 450/750 V, PARA CIRCUITOS TERMINAIS - FORNECIMENTO E INSTALAÇÃO. AF_12/2015 | S80: M | T80: 1090
A81: S | B81: 3 | C81: S | D81: 0 | E81: 1 | F81: 6 | G81: 2 | H81: 0 | I81: 0 | J81: 0 | K81: 0 | M81: Serviço | N81: Serviço | O81: 1.6.2.0.2. | P81: AGETOP | Q81: 71250 | R81: ELETRODUTO EM AÇO ZINCADO DIÂMETRO 1/2" | S81: M | T81: 333
A82: S | B82: 3 | C82: S | D82: 0 | E82: 1 | F82: 6 | G82: 2 | H82: 0 | I82: 0 | J82: 0 | K82: 0 | M82: Serviço | N82: Serviço | O82: 1.6.2.0.3. | P82: AGETOP | Q82: 71120 | R82: CURVA 90 GRAUS AÇO ZINCADO DIÂMETRO 1/2" | S82: Un | T82: 21
A83: S | B83: 3 | C83: S | D83: 0 | E83: 1 | F83: 6 | G83: 2 | H83: 0 | I83: 0 | J83: 0 | K83: 0 | M83: Serviço | N83: Serviço | O83: 1.6.2.0.4. | P83: AGETOP | Q83: 71720 | R83: LUVA EM AÇO ZINCADO DIÂMETRO 1/2" | S83: Un | T83: 111
A84: S | B84: 3 | C84: S | D84: 0 | E84: 1 | F84: 6 | G84: 2 | H84: 0 | I84: 0 | J84: =IF(OR($C84="S",$C84=0),0,MATCH(0,OFFSET($D84,1,$C84,ROW($C$240)-ROW($C84)),0)) -> 0 | K84: =IF(OR($C84="S",$C84=0),0,MATCH(OFFSET($D84,0,$C84)+1,OFFSET($D84,1,$C84,ROW($C$240)-ROW($C84)),0)) -> 0 | M84: Serviço | N84: Serviço | O84: 1.6.2.0.5. | P84: SINAPI | Q84: 95801 | R84: CONDULETE DE ALUMÍNIO, TIPO X, PARA ELETRODUTO DE AÇO GALVANIZADO DN 20 MM (3/4''), APARENTE - FORNECIMENTO E INSTALAÇÃO. AF_11/2016_P | S84: UN | T84: 45
A85: S | B85: 3 | C85: S | D85: 0 | E85: 1 | F85: 6 | G85: 2 | H85: 0 | I85: 0 | J85: 0 | K85: 0 | M85: Serviço | N85: Serviço | O85: 1.6.2.0.6. | P85: AGETOP | Q85: 72476 | R85: TAMPA PARA CONDULETE METÁLICO PARA 1 TOMADA | S85: un | T85: 21
A86: S | B86: 3 | C86: S | D86: 0 | E86: 1 | F86: 6 | G86: 2 | H86: 0 | I86: 0 | J86: 0 | K86: 0 | M86: Serviço | N86: Serviço | O86: 1.6.2.0.7. | P86: AGETOP | Q86: 72578 | R86: TOMADA HEXAGONAL 2P + T - 10A - 250V | S86: Un | T86: 21
A87: S | B87: 3 | C87: S | D87: 0 | E87: 1 | F87: 6 | G87: 2 | H87: 0 | I87: 0 | J87: 0 | K87: 0 | M87: Serviço | N87: Serviço | O87: 1.6.2.0.8. | P87: AGETOP | Q87: 72385 | R87: TAMPA CEGA PARA CONDULETE DE PVC | S87: Un | T87: 21
A88: S | B88: 3 | C88: S | D88: 0 | E88: 1 | F88: 6 | G88: 2 | H88: 0 | I88: 0 | J88: 0 | K88: 0 | M88: Serviço | N88: Serviço | O88: 1.6.2.0.9. | P88: AGETOP | Q88: 72395 | R88: TAMPA CEGA PARA CONDULETE METÁLICO | S88: Un | T88: 24
A89: =CHOOSE(1+LOG(1+2*(ORÇAMENTO.Nivel="Nível 1")+4*(ORÇAMENTO.Nivel="Nível 2")+8*(ORÇAMENTO.Nivel="Nível 3")+16*(ORÇAMENTO.Nivel="Nível 4")+32*(ORÇAMENTO.Nivel="Serviço"),2),0,1,2,3,4,"S") -> 2 | B89: 2 | C89: 2 | D89: 70 | E89: 1 | F89: 7 | G89: 0 | H89: 0 | I89: 0 | J89: 151 | K89: 70 | M89: Nível 2 | N89: Nível 2 | O89: 1.7. | P89: AGETOP | R89: INSTALAÇÕES HIDROSSANITÁRIAS | S89: -
A90: 3 | B90: 3 | C90: 3 | D90: 19 | E90: 1 | F90: 7 | G90: 1 | H90: 0 | I90: 0 | J90: 69 | K90: 19 | M90: Nível 3 | N90: Nível 3 | O90: 1.7.1. | P90: SINAPI | R90: PEÇAS E ACESSÓRIOS | S90: -
A91: 4 | B91: 4 | C91: 4 | D91: 7 | E91: 1 | F91: 7 | G91: 1 | H91: 1 | I91: 0 | J91: 18 | K91: 7 | M91: Nível 4 | N91: Nível 4 | O91: 1.7.1.1. | P91: SINAPI | R91: VASO SANITÁRIO E ACESSÓRIOS | S91: -
A92: S | B92: 4 | C92: S | D92: 0 | E92: 1 | F92: 7 | G92: 1 | H92: 1 | I92: 0 | J92: 0 | K92: 0 | M92: Serviço | N92: Serviço | O92: 1.7.1.1.1. | P92: SINAPI | Q92: 95470 | R92: VASO SANITARIO SIFONADO CONVENCIONAL COM LOUÇA BRANCA, INCLUSO CONJUNTO DE LIGAÇÃO PARA BACIA SANITÁRIA AJUSTÁVEL - FORNECIMENTO E INSTALAÇÃO. AF_10/2016 | S92: UN | T92: 2
A93: S | B93: 4 | C93: S | D93: 0 | E93: 1 | F93: 7 | G93: 1 | H93: 1 | I93: 0 | J93: 0 | K93: 0 | M93: Serviço | N93: Serviço | O93: 1.7.1.1.2. | P93: SINAPI | Q93: 99635 | R93: VÁLVULA DE DESCARGA METÁLICA, BASE 1 1/2 ", ACABAMENTO METALICO CROMADO - FORNECIMENTO E INSTALAÇÃO. AF_01/2019 | S93: UN | T93: 2
A94: S | B94: 4 | C94: S | D94: 0 | E94: 1 | F94: 7 | G94: 1 | H94: 1 | I94: 0 | J94: 0 | K94: 0 | M94: Serviço | N94: Serviço | O94: 1.7.1.1.3. | P94: AGETOP | Q94: 80520 | R94: CONJUNTO DE FIXACAO P/VASO SANITARIO (PAR) | S94: CJ | T94: 2
A95: S | B95: 4 | C95: S | D95: 0 | E95: 1 | F95: 7 | G95: 1 | H95: 1 | I95: 0 | J95: 0 | K95: 0 | M95: Serviço | N95: Serviço | O95: 1.7.1.1.4. | P95: AGETOP | Q95: 80510 | R95: ANEL DE VEDAÇÃO PARA VASO SANITÁRIO | S95: Un | T95: 2
A96: S | B96: 4 | C96: S | D96: 0 | E96: 1 | F96: 7 | G96: 1 | H96: 1 | I96: 0 | J96: 0 | K96: 0 | M96: Serviço | N96: Serviço | O96: 1.7.1.1.5. | P96: AGETOP | Q96: 80513 | R96: TUBO PARA VÁLVULA DE DESCARGA ( CURTO 1.1/4" ) | S96: Un | T96: 2
A97: S | B97: 4 | C97: S | D97: 0 | E97: 1 | F97: 7 | G97: 1 | H97: 1 | I97: 0 | J97: 0 | K97: 0 | M97: Serviço | N97: Serviço | O97: 1.7.1.1.6. | P97: AGETOP | Q97: 80514 | R97: TUBO DE LIGACAO PVC CROMADO 1.1/2" / ESPUDE - (ENTRADA) | S97: Un | T97: 2
A98: 4 | B98: 4 | C98: 4 | D98: 5 | E98: 1 | F98: 7 | G98: 1 | H98: 2 | I98: 0 | J98: 11 | K98: 5 | M98: Nível 4 | N98: Nível 4 | O98: 1.7.1.2. | P98: SINAPI | R98: LAVATÓRIO E ACESSÓRIOS | S98: -
A99: S | B99: 4 | C99: S | D99: 0 | E99: 1 | F99: 7 | G99: 1 | H99: 2 | I99: 0 | J99: 0 | K99: 0 | M99: Serviço | N99: Serviço | O99: 1.7.1.2.1. | P99: SINAPI | Q99: 86915 | R99: TORNEIRA CROMADA DE MESA, 1/2" OU 3/4", PARA LAVATÓRIO, PADRÃO MÉDIO - FORNECIMENTO E INSTALAÇÃO. AF_12/2013 | S99: UN | T99: 1
A100: S | B100: 4 | C100: S | D100: 0 | E100: 1 | F100: 7 | G100: 1 | H100: 2 | I100: 0 | J100: 0 | K100: 0 | M100: Serviço | N100: Serviço | O100: 1.7.1.2.2. | P100: AGETOP | Q100: 80621 | R100: VÁLVULA DE DESCARGA PARA MICTÓRIO DIÂMETRO 1/2" FECHAMENTO AUTOMÁTICO TEMPORIZADO | S100: Un | T100: 1
A101: S | B101: 4 | C101: S | D101: 0 | E101: 1 | F101: 7 | G101: 1 | H101: 2 | I101: 0 | J101: 0 | K101: 0 | M101: Serviço | N101: Serviço | O101: 1.7.1.2.3. | P101: AGETOP | Q101: 80590 | R101: CUBA DE LOUCA DE EMBUTIR OVAL MÉDIA | S101: Un | T101: 1
A102: S | B102: 4 | C102: S | D102: 0 | E102: 1 | F102: 7 | G102: 1 | H102: 2 | I102: 0 | J102: 0 | K102: 0 | M102: Serviço | N102: Serviço | O102: 1.7.1.2.4. | P102: AGETOP | Q102: 80562 | R102: SIFAO FLEXIVEL UNIVERSAL ( SANFONADO) EM PVC PARA LAVATORIO | S102: Un | T102: 1
A103: 4 | B103: 4 | C103: 4 | D103: 3 | E103: 1 | F103: 7 | G103: 1 | H103: 3 | I103: 0 | J103: 6 | K103: 3 | M103: Nível 4 | N103: Nível 4 | O103: 1.7.1.3. | P103: SINAPI | R103: PIA E ACESSÓRIOS | S103: -
A104: S | B104: 4 | C104: S | D104: 0 | E104: 1 | F104: 7 | G104: 1 | H104: 3 | I104: 0 | J104: 0 | K104: 0 | M104: Serviço | N104: Serviço | O104: 1.7.1.3.1. | P104: SINAPI | Q104: 86912 | R104: TORNEIRA CROMADA LONGA, DE PAREDE, 1/2" OU 3/4", PARA PIA DE COZINHA, PADRÃO MÉDIO - FORNECIMENTO E INSTALAÇÃO. AF_12/2013 | S104: UN | T104: 1
A105: S | B105: 4 | C105: S | D105: 0 | E105: 1 | F105: 7 | G105: 1 | H105: 3 | I105: 0 | J105: 0 | K105: 0 | M105: Serviço | N105: Serviço | O105: 1.7.1.3.2. | P105: SINAPI | Q105: 86881 | R105: SIFÃO DO TIPO GARRAFA EM METAL CROMADO 1 X 1.1/2" - FORNECIMENTO E INSTALAÇÃO. AF_12/2013 | S105: UN | T105: 1
A106: 4 | B106: 4 | C106: 4 | D106: 3 | E106: 1 | F106: 7 | G106: 1 | H106: 4 | I106: 0 | J106: 3 | K106: 17 | M106: Nível 4 | N106: Nível 4 | O106: 1.7.1.4. | P106: SINAPI | R106: REGISTROS | S106: -
A107: S | B107: 4 | C107: S | D107: 0 | E107: 1 | F107: 7 | G107: 1 | H107: 4 | I107: 0 | J107: 0 | K107: 0 | M107: Serviço | N107: Serviço | O107: 1.7.1.4.1. | P107: AGETOP | Q107: 80902 | R107: REGISTRO DE GAVETA BRUTO DIAMETRO 3/4" | S107: Un | T107: 2
A108: S | B108: 4 | C108: S | D108: 0 | E108: 1 | F108: 7 | G108: 1 | H108: 4 | I108: 0 | J108: 0 | K108: 0 | M108: Serviço | N108: Serviço | O108: 1.7.1.4.2. | P108: AGETOP | Q108: 80905 | R108: REGISTRO DE GAVETA BRUTO DIAMETRO 1.1/2" | S108: Un | T108: 1
A109: 3 | B109: 3 | C109: 3 | D109: 20 | E109: 1 | F109: 7 | G109: 2 | H109: 0 | I109: 0 | J109: 50 | K109: 20 | M109: Nível 3 | N109: Nível 3 | O109: 1.7.2. | P109: SINAPI | R109: ÁGUA FRIA | S109: -
A110: 4 | B110: 4 | C110: 4 | D110: 4 | E110: 1 | F110: 7 | G110: 2 | H110: 1 | I110: 0 | J110: 19 | K110: 4 | M110: Nível 4 | N110: Nível 4 | O110: 1.7.2.1. | P110: SINAPI | R110: TUBOS DE PVC SOLDÁVEL | S110: -
A111: S | B111: 4 | C111: S | D111: 0 | E111: 1 | F111: 7 | G111: 2 | H111: 1 | I111: 0 | J111: 0 | K111: 0 | M111: Serviço | N111: Serviço | O111: 1.7.2.1.1. | P111: SINAPI | Q111: 89402 | R111: TUBO, PVC, SOLDÁVEL, DN 25MM, INSTALADO EM RAMAL DE DISTRIBUIÇÃO DE ÁGUA - FORNECIMENTO E INSTALAÇÃO. AF_12/2014 | S111: M | T111: 1
A112: S | B112: 4 | C112: S | D112: 0 | E112: 1 | F112: 7 | G112: 2 | H112: 1 | I112: 0 | J112: 0 | K112: 0 | M112: Serviço | N112: Serviço | O112: 1.7.2.1.2. | P112: SINAPI | Q112: 89449 | R112: TUBO, PVC, SOLDÁVEL, DN 50MM, INSTALADO EM PRUMADA DE ÁGUA - FORNECIMENTO E INSTALAÇÃO. AF_12/2014 | S112: M | T112: 30
A113: S | B113: 4 | C113: S | D113: 0 | E113: 1 | F113: 7 | G113: 2 | H113: 1 | I113: 0 | J113: 0 | K113: 0 | M113: Serviço | N113: Serviço | O113: 1.7.2.1.3. | P113: SINAPI | Q113: 89451 | R113: TUBO, PVC, SOLDÁVEL, DN 75MM, INSTALADO EM PRUMADA DE ÁGUA - FORNECIMENTO E INSTALAÇÃO. AF_12/2014 | S113: M | T113: 40
A114: 4 | B114: 4 | C114: 4 | D114: 3 | E114: 1 | F114: 7 | G114: 2 | H114: 2 | I114: 0 | J114: 15 | K114: 3 | M114: Nível 4 | N114: Nível 4 | O114: 1.7.2.2. | P114: SINAPI | R114: ADAPTADORES DE PVC SOLDÁVEL | S114: -
A115: S | B115: 4 | C115: S | D115: 0 | E115: 1 | F115: 7 | G115: 2 | H115: 2 | I115: 0 | J115: 0 | K115: 0 | M115: Serviço | N115: Serviço | O115: 1.7.2.2.1. | P115: SINAPI | Q115: 89538 | R115: ADAPTADOR CURTO COM BOLSA E ROSCA PARA REGISTRO, PVC, SOLDÁVEL, DN 25MM X 3/4, INSTALADO EM PRUMADA DE ÁGUA - FORNECIMENTO E INSTALAÇÃO. AF_12/2014 | S115: UN | T115: 4
A116: S | B116: 4 | C116: S | D116: 0 | E116: 1 | F116: 7 | G116: 2 | H116: 2 | I116: 0 | J116: =IF(OR($C116="S",$C116=0),0,MATCH(0,OFFSET($D116,1,$C116,ROW($C$240)-ROW($C116)),0)) -> 0 | K116: =IF(OR($C116="S",$C116=0),0,MATCH(OFFSET($D116,0,$C116)+1,OFFSET($D116,1,$C116,ROW($C$240)-ROW($C116)),0)) -> 0 | M116: Serviço | N116: Serviço | O116: 1.7.2.2.2. | P116: SINAPI | Q116: 89596 | R116: ADAPTADOR CURTO COM BOLSA E ROSCA PARA REGISTRO, PVC, SOLDÁVEL, DN 50MM X 1.1/2, INSTALADO EM PRUMADA DE ÁGUA - FORNECIMENTO E INSTALAÇÃO. AF_12/2014 | S116: UN | T116: 4
A117: 4 | B117: 4 | C117: 4 | D117: 2 | E117: 1 | F117: 7 | G117: 2 | H117: 3 | I117: 0 | J117: 12 | K117: 2 | M117: Nível 4 | N117: Nível 4 | O117: 1.7.2.3. | P117: SINAPI | R117: BUCHAS | S117: -
A118: S | B118: 4 | C118: S | D118: 0 | E118: 1 | F118: 7 | G118: 2 | H118: 3 | I118: 0 | J118: 0 | K118: 0 | M118: Serviço | N118: Serviço | O118: 1.7.2.3.1. | P118: AGETOP | Q118: 81179 | R118: BUCHA DE REDUCAO SOLDAVEL LONGA 50 X 25 mm | S118: Un | T118: 1
A119: 4 | B119: 4 | C119: 4 | D119: 4 | E119: 1 | F119: 7 | G119: 2 | H119: 4 | I119: 0 | J119: 10 | K119: 4 | M119: Nível 4 | N119: Nível 4 | O119: 1.7.2.4. | P119: SINAPI | R119: JOELHO | S119: -
A120: S | B120: 4 | C120: S | D120: 0 | E120: 1 | F120: 7 | G120: 2 | H120: 4 | I120: 0 | J120: 0 | K120: 0 | M120: Serviço | N120: Serviço | O120: 1.7.2.4.1. | P120: SINAPI | Q120: 89501 | R120: JOELHO 90 GRAUS, PVC, SOLDÁVEL, DN 50MM, INSTALADO EM PRUMADA DE ÁGUA - FORNECIMENTO E INSTALAÇÃO. AF_12/2014 | S120: UN | T120: 4
A121: S | B121: 4 | C121: S | D121: 0 | E121: 1 | F121: 7 | G121: 2 | H121: 4 | I121: 0 | J121: 0 | K121: 0 | M121: Serviço | N121: Serviço | O121: 1.7.2.4.2. | P121: SINAPI | Q121: 89513 | R121: JOELHO 90 GRAUS, PVC, SOLDÁVEL, DN 75MM, INSTALADO EM PRUMADA DE ÁGUA - FORNECIMENTO E INSTALAÇÃO. AF_12/2014 | S121: UN | T121: 3
A122: S | B122: 4 | C122: S | D122: 0 | E122: 1 | F122: 7 | G122: 2 | H122: 4 | I122: 0 | J122: 0 | K122: 0 | M122: Serviço | N122: Serviço | O122: 1.7.2.4.3. | P122: AGETOP | Q122: 81360 | R122: JOELHO RED.90 GRAUS SOLD.C/BUCHA LATAO 25X1/2" | S122: Un | T122: 1
A123: 4 | B123: 4 | C123: 4 | D123: 3 | E123: 1 | F123: 7 | G123: 2 | H123: 5 | I123: 0 | J123: 6 | K123: 3 | M123: Nível 4 | N123: Nível 4 | O123: 1.7.2.5. | P123: SINAPI | R123: TÊ | S123: -
A124: S | B124: 4 | C124: S | D124: 0 | E124: 1 | F124: 7 | G124: 2 | H124: 5 | I124: 0 | J124: 0 | K124: 0 | M124: Serviço | N124: Serviço | O124: 1.7.2.5.1. | P124: SINAPI | Q124: 89625 | R124: TE, PVC, SOLDÁVEL, DN 50MM, INSTALADO EM PRUMADA DE ÁGUA - FORNECIMENTO E INSTALAÇÃO. AF_12/2014 | S124: UN | T124: 2
A125: S | B125: 4 | C125: S | D125: 0 | E125: 1 | F125: 7 | G125: 2 | H125: 5 | I125: 0 | J125: 0 | K125: 0 | M125: Serviço | N125: Serviço | O125: 1.7.2.5.2. | P125: SINAPI | Q125: 94698 | R125: TÊ DE REDUÇÃO, PVC, SOLDÁVEL, DN 75 MM X 50 MM, INSTALADO EM RESERVAÇÃO DE ÁGUA DE EDIFICAÇÃO QUE POSSUA RESERVATÓRIO DE FIBRA/FIBROCIMENTO FORNECIMENTO E INSTALAÇÃO. AF_06/2016 | S125: UN | T125: 1
A126: 4 | B126: 4 | C126: 4 | D126: 3 | E126: 1 | F126: 7 | G126: 2 | H126: 6 | I126: 0 | J126: 3 | M126: Nível 4 | N126: Nível 4 | O126: 1.7.2.6. | P126: SINAPI | R126: ADESIVOS | S126: -
A127: S | B127: 4 | C127: S | D127: 0 | E127: 1 | F127: 7 | G127: 2 | H127: 6 | I127: 0 | J127: 0 | K127: 0 | M127: Serviço | N127: Serviço | O127: 1.7.2.6.1. | P127: AGETOP | Q127: 81501 | R127: ADESIVO PLASTICO - FRASCO 850 G | S127: Un | T127: 1
A128: S | B128: 4 | C128: S | D128: 0 | E128: 1 | F128: 7 | G128: 2 | H128: 6 | I128: 0 | J128: 0 | K128: 0 | M128: Serviço | N128: Serviço | O128: 1.7.2.6.2. | P128: AGETOP | Q128: 81504 | R128: SOLUCAO LIMPADORA 1000 CM3 | S128: Un | T128: 1
A129: 3 | B129: 3 | C129: 3 | D129: 20 | E129: 1 | F129: 7 | G129: 3 | H129: 0 | I129: 0 | J129: 30 | K129: 20 | M129: Nível 3 | N129: Nível 3 | O129: 1.7.3. | P129: SINAPI | R129: ESGOTO SANITÁRIO | S129: -
A130: 4 | B130: 4 | C130: 4 | D130: 4 | E130: 1 | F130: 7 | G130: 3 | H130: 1 | I130: 0 | J130: 19 | K130: 4 | M130: Nível 4 | N130: Nível 4 | O130: 1.7.3.1. | P130: SINAPI | R130: CORPO DE CAIXA SIFONADA / RALO | S130: -
A131: S | B131: 4 | C131: S | D131: 0 | E131: 1 | F131: 7 | G131: 3 | H131: 1 | I131: 0 | J131: 0 | K131: 0 | M131: Serviço | N131: Serviço | O131: 1.7.3.1.1. | P131: AGETOP | Q131: 81663 | R131: CORPO CX. SIFONADA DIAM. 150 X 150 X 50 | S131: Un | T131: 1
A132: S | B132: 4 | C132: S | D132: 0 | E132: 1 | F132: 7 | G132: 3 | H132: 1 | I132: 0 | J132: 0 | K132: 0 | M132: Serviço | N132: Serviço | O132: 1.7.3.1.2. | P132: AGETOP | Q132: 81696 | R132: PROLONGAMENTO PARA CAIXA SIFONADA 150 MM | S132: M | T132: 1
A133: S | B133: 4 | C133: S | D133: 0 | E133: 1 | F133: 7 | G133: 3 | H133: 1 | I133: 0 | J133: 0 | K133: 0 | M133: Serviço | N133: Serviço | O133: 1.7.3.1.3. | P133: AGETOP | Q133: 81786 | R133: GRELHA REDONDA ACO INOX SIMPLES DIAM. 150 MM | S133: Un | T133: 1
A134: 4 | B134: 4 | C134: 4 | D134: 4 | E134: 1 | F134: 7 | G134: 3 | H134: 2 | I134: 0 | J134: 15 | K134: 4 | M134: Nível 4 | N134: Nível 4 | O134: 1.7.3.2. | P134: SINAPI | R134: CURVAS | S134: -
A135: S | B135: 4 | C135: S | D135: 0 | E135: 1 | F135: 7 | G135: 3 | H135: 2 | I135: 0 | J135: 0 | K135: 0 | M135: Serviço | N135: Serviço | O135: 1.7.3.2.1. | P135: AGETOP | Q135: 81733 | R135: CURVA 90 GRAUS CURTA DIAM. 100 MM | S135: Un | T135: 2
A136: S | B136: 4 | C136: S | D136: 0 | E136: 1 | F136: 7 | G136: 3 | H136: 2 | I136: 0 | J136: 0 | K136: 0 | M136: Serviço | N136: Serviço | O136: 1.7.3.2.2. | P136: AGETOP | Q136: 81730 | R136: CURVA 90 GRAUS CURTA DIAM. 40 MM | S136: Un | T136: 1
A137: S | B137: 4 | C137: S | D137: 0 | E137: 1 | F137: 7 | G137: 3 | H137: 2 | I137: 0 | J137: 0 | K137: 0 | M137: Serviço | N137: Serviço | O137: 1.7.3.2.3. | P137: AGETOP | Q137: 81731 | R137: CURVA 90 GRAUS CURTA DIAM. 50 MM | S137: Un | T137: 1
A138: 4 | B138: 4 | C138: 4 | D138: 3 | E138: 1 | F138: 7 | G138: 3 | H138: 3 | I138: 0 | J138: 11 | K138: 3 | M138: Nível 4 | N138: Nível 4 | O138: 1.7.3.3. | P138: SINAPI | R138: JOELHOS | S138: -
A139: S | B139: 4 | C139: S | D139: 0 | E139: 1 | F139: 7 | G139: 3 | H139: 3 | I139: 0 | J139: 0 | K139: 0 | M139: Serviço | N139: Serviço | O139: 1.7.3.3.1. | P139: SINAPI | Q139: 89731 | R139: JOELHO 90 GRAUS, PVC, SERIE NORMAL, ESGOTO PREDIAL, DN 50 MM, JUNTA ELÁSTICA, FORNECIDO E INSTALADO EM RAMAL DE DESCARGA OU RAMAL DE ESGOTO SANITÁRIO. AF_12/2014 | S139: UN | T139: 1
A140: S | B140: 4 | C140: S | D140: 0 | E140: 1 | F140: 7 | G140: 3 | H140: 3 | I140: 0 | J140: 0 | K140: 0 | M140: Serviço | N140: Serviço | O140: 1.7.3.3.2. | P140: AGETOP | Q140: 81927 | R140: JOELHO 90 GRAUS C/ANEL 40 mm | S140: Un | T140: 1
A141: 4 | B141: 4 | C141: 4 | D141: 2 | E141: 1 | F141: 7 | G141: 3 | H141: 4 | I141: 0 | J141: 8 | K141: 2 | M141: Nível 4 | N141: Nível 4 | O141: 1.7.3.4. | P141: SINAPI | R141: JUNÇÕES | S141: -
A142: S | B142: 4 | C142: S | D142: 0 | E142: 1 | F142: 7 | G142: 3 | H142: 4 | I142: 0 | J142: 0 | K142: 0 | M142: Serviço | N142: Serviço | O142: 1.7.3.4.1. | P142: AGETOP | Q142: 81973 | R142: JUNCAO SIMPLES DIAM. 100 X 50 MM | S142: Un | T142: 1
A143: 4 | B143: 4 | C143: 4 | D143: 2 | E143: 1 | F143: 7 | G143: 3 | H143: 5 | I143: 0 | J143: 6 | K143: 2 | M143: Nível 4 | N143: Nível 4 | O143: 1.7.3.5. | P143: SINAPI | R143: TÊ | S143: -
A144: S | B144: 4 | C144: S | D144: 0 | E144: 1 | F144: 7 | G144: 3 | H144: 5 | I144: 0 | J144: 0 | K144: 0 | M144: Serviço | N144: Serviço | O144: 1.7.3.5.1. | P144: SINAPI | Q144: 89825 | R144: TE, PVC, SERIE NORMAL, ESGOTO PREDIAL, DN 50 X 50 MM, JUNTA ELÁSTICA, FORNECIDO E INSTALADO EM PRUMADA DE ESGOTO SANITÁRIO OU VENTILAÇÃO. AF_12/2014 | S144: UN | T144: 1
A145: 4 | B145: 4 | C145: 4 | D145: 4 | E145: 1 | F145: 7 | G145: 3 | H145: 6 | I145: 0 | J145: 4 | M145: Nível 4 | N145: Nível 4 | O145: 1.7.3.6. | P145: SINAPI | R145: TUBOS | S145: -
A146: S | B146: 4 | C146: S | D146: 0 | E146: 1 | F146: 7 | G146: 3 | H146: 6 | I146: 0 | J146: 0 | K146: 0 | M146: Serviço | N146: Serviço | O146: 1.7.3.6.1. | P146: SINAPI | Q146: 89711 | R146: TUBO PVC, SERIE NORMAL, ESGOTO PREDIAL, DN 40 MM, FORNECIDO E INSTALADO EM RAMAL DE DESCARGA OU RAMAL DE ESGOTO SANITÁRIO. AF_12/2014 | S146: M | T146: 2
A147: S | B147: 4 | C147: S | D147: 0 | E147: 1 | F147: 7 | G147: 3 | H147: 6 | I147: 0 | J147: 0 | K147: 0 | M147: Serviço | N147: Serviço | O147: 1.7.3.6.2. | P147: SINAPI | Q147: 89798 | R147: TUBO PVC, SERIE NORMAL, ESGOTO PREDIAL, DN 50 MM, FORNECIDO E INSTALADO EM PRUMADA DE ESGOTO SANITÁRIO OU VENTILAÇÃO. AF_12/2014 | S147: M | T147: 2
A148: S | B148: 4 | C148: S | D148: 0 | E148: 1 | F148: 7 | G148: 3 | H148: 6 | I148: 0 | J148: =IF(OR($C148="S",$C148=0),0,MATCH(0,OFFSET($D148,1,$C148,ROW($C$240)-ROW($C148)),0)) -> 0 | K148: =IF(OR($C148="S",$C148=0),0,MATCH(OFFSET($D148,0,$C148)+1,OFFSET($D148,1,$C148,ROW($C$240)-ROW($C148)),0)) -> 0 | M148: Serviço | N148: Serviço | O148: 1.7.3.6.3. | P148: SINAPI | Q148: 89800 | R148: TUBO PVC, SERIE NORMAL, ESGOTO PREDIAL, DN 100 MM, FORNECIDO E INSTALADO EM PRUMADA DE ESGOTO SANITÁRIO OU VENTILAÇÃO. AF_12/2014 | S148: M | T148: 17
A149: 3 | B149: 3 | C149: 3 | D149: 4 | E149: 1 | F149: 7 | G149: 4 | H149: 0 | I149: 0 | J149: 10 | K149: 4 | M149: Nível 3 | N149: Nível 3 | O149: 1.7.4. | P149: SINAPI | R149: OUTROS | S149: -
A150: S | B150: 3 | C150: S | D150: 0 | E150: 1 | F150: 7 | G150: 4 | H150: 0 | I150: 0 | J150: 0 | K150: 0 | M150: Serviço | N150: Serviço | O150: 1.7.4.0.1. | P150: AGETOP | Q150: 81825 | R150: CAIXA DE PASSAGEM 60 X 60 CM SEM TAMPA | S150: Un | T150: 1
A151: S | B151: 3 | C151: S | D151: 0 | E151: 1 | F151: 7 | G151: 4 | H151: 0 | I151: 0 | J151: 0 | K151: 0 | M151: Serviço | N151: Serviço | O151: 1.7.4.0.2. | P151: AGETOP | Q151: 81826 | R151: TAMPA EM CONCRETO ARMADO 25 MPA E=5CM PARA A CAIXA DE PASSAGEM 60X60CM | S151: Un | T151: 1
A152: S | B152: 3 | C152: S | D152: 0 | E152: 1 | F152: 7 | G152: 4 | H152: 0 | I152: 0 | J152: 0 | K152: 0 | M152: Serviço | N152: Serviço | O152: 1.7.4.0.3. | P152: AGETOP | Q152: 81885 | R152: TERMINAL DE VENTILACAO DIAMETRO 50 MM | S152: Un | T152: 1
A153: =CHOOSE(1+LOG(1+2*(ORÇAMENTO.Nivel="Nível 1")+4*(ORÇAMENTO.Nivel="Nível 2")+8*(ORÇAMENTO.Nivel="Nível 3")+16*(ORÇAMENTO.Nivel="Nível 4")+32*(ORÇAMENTO.Nivel="Serviço"),2),0,1,2,3,4,"S") -> 3 | B153: 3 | C153: 3 | D153: 6 | E153: 1 | F153: 7 | G153: 5 | H153: 0 | I153: 0 | J153: 6 | M153: Nível 3 | N153: Nível 3 | O153: 1.7.5. | P153: SINAPI | R153: INST. DE INCÊNDIO | S153: -
A154: S | B154: 3 | C154: S | D154: 0 | E154: 1 | F154: 7 | G154: 5 | H154: 0 | I154: 0 | J154: 0 | K154: 0 | M154: Serviço | N154: Serviço | O154: 1.7.5.0.1. | P154: AGETOP | Q154: 85003 | R154: EXTINTOR PO QUIMICO SECO (6 KG) - CAPACIDADE EXTINTORA 20 BC | S154: Un | T154: 8
A155: S | B155: 3 | C155: S | D155: 0 | E155: 1 | F155: 7 | G155: 5 | H155: 0 | I155: 0 | J155: 0 | K155: 0 | M155: Serviço | N155: Serviço | O155: 1.7.5.0.2. | P155: AGETOP | Q155: 85005 | R155: EXTINTOR AGUA PRESSURIZADA (10 LITROS) - CAPACIDADE EXTINTORA 2A | S155: Un | T155: 6
A156: S | B156: 3 | C156: S | D156: 0 | E156: 1 | F156: 7 | G156: 5 | H156: 0 | I156: 0 | J156: 0 | K156: 0 | M156: Serviço | N156: Serviço | O156: 1.7.5.0.3. | P156: COMPOSIÇÃO | Q156: COMP 024_SEE | R156: SINALIZADOR FOTOLUMINESCENTE PARA EXTINTOR | S156: UN | T156: 8
A157: S | B157: 3 | C157: S | D157: 0 | E157: 1 | F157: 7 | G157: 5 | H157: 0 | I157: 0 | J157: 0 | K157: 0 | M157: Serviço | N157: Serviço | O157: 1.7.5.0.4. | P157: COMPOSIÇÃO | Q157: COMP 025_SEE | R157: SINALIZADOR FOTOLUMINESCENTE DE EMERGÊNCIA | S157: UN | T157: 8
A158: S | B158: 3 | C158: S | D158: 0 | E158: 1 | F158: 7 | G158: 5 | H158: 0 | I158: 0 | J158: 0 | K158: 0 | M158: Serviço | N158: Serviço | O158: 1.7.5.0.5. | P158: AGETOP | Q158: 71598 | R158: LUMINÁRIA DE EMERGÊNCIA 30 LEDS | S158: un | T158: 16
A159: =CHOOSE(1+LOG(1+2*(ORÇAMENTO.Nivel="Nível 1")+4*(ORÇAMENTO.Nivel="Nível 2")+8*(ORÇAMENTO.Nivel="Nível 3")+16*(ORÇAMENTO.Nivel="Nível 4")+32*(ORÇAMENTO.Nivel="Serviço"),2),0,1,2,3,4,"S") -> 2 | B159: =IF(OR(C159="s",C159=0),OFFSET(B159,-1,0),C159) -> 2 | C159: =IF(OFFSET(C159,-1,0)="L",1,IF(OFFSET(C159,-1,0)=1,2,IF(OR(A159="s",A159=0),"S",IF(AND(OFFSET(C159,-1,0)=2,A159=4),3,IF(AND(OR(OFFSET(C159,-1,0)="s",OFFSET(C159,-1,0)=0),A159<>"s",A159>OFFSET(B159,-1,0)),OFFSET(B159,-1,0),A159))))) -> 2 | D159: =IF(OR(C159="S",C159=0),0,IF(ISERROR(K159),J159,SMALL(J159:K159,1))) -> 28 | E159: =IF($C159=1,OFFSET(E159,-1,0)+1,OFFSET(E159,-1,0)) -> 1 | F159: =IF($C159=1,0,IF($C159=2,OFFSET(F159,-1,0)+1,OFFSET(F159,-1,0))) -> 8 | G159: =IF(AND($C159<=2,$C159<>0),0,IF($C159=3,OFFSET(G159,-1,0)+1,OFFSET(G159,-1,0))) -> 0 | H159: =IF(AND($C159<=3,$C159<>0),0,IF($C159=4,OFFSET(H159,-1,0)+1,OFFSET(H159,-1,0))) -> 0 | I159: =IF(AND($C159<=4,$C159<>0),0,IF(AND($C159="S",$W159>0),OFFSET(I159,-1,0)+1,OFFSET(I159,-1,0))) -> 0 | J159: 81 | K159: 28 | L159: =IF(OR(W159>0,$C159=1),"F","") ->  | M159: Nível 2 | N159: =CHOOSE(1+LOG(1+2*(C159=1)+4*(C159=2)+8*(C159=3)+16*(C159=4)+32*(C159="S"),2),"","Nível 1","Nível 2","Nível 3","Nível 4","Serviço") -> Nível 2 | O159: 1.8. | R159: INSTALAÇÕES ESPECIAIS | S159: -
A160: S | B160: 2 | C160: S | D160: 0 | E160: 1 | F160: 8 | G160: 0 | H160: 0 | I160: 0 | J160: 0 | K160: 0 | M160: Serviço | N160: Serviço | O160: 1.8.0.0.1. | P160: AGETOP | Q160: 91007 | R160: CENTRAL DE GÁS PADRÃO GOINFRA SEM INSTALAÇÕES (1+1 CILINDRO 45 KG) | S160: Un | T160: 1
A161: S | B161: 2 | C161: S | D161: 0 | E161: 1 | F161: 8 | G161: 0 | H161: 0 | I161: 0 | J161: 0 | K161: 0 | M161: Serviço | N161: Serviço | O161: 1.8.0.0.2. | P161: AGETOP | Q161: 91023 | R161: UNIÃO S/BRONZE PRETA 3/4" NPT 300 LBS | S161: Un | T161: 3
A162: S | B162: 2 | C162: S | D162: 0 | E162: 1 | F162: 8 | G162: 0 | H162: 0 | I162: 0 | J162: 0 | K162: 0 | M162: Serviço | N162: Serviço | O162: 1.8.0.0.3. | P162: COMPOSIÇÃO | Q162: COMP 382_SEE | R162: TE DE REDUCAO DE FERRO GALVANIZADO, COM ROSCA BSP, DE 3/4" X 1/2" | S162: UN | T162: 1
A163: S | B163: 2 | C163: S | D163: 0 | E163: 1 | F163: 8 | G163: 0 | H163: 0 | I163: 0 | J163: 0 | K163: 0 | M163: Serviço | N163: Serviço | O163: 1.8.0.0.4. | P163: COMPOSIÇÃO | Q163: COMP 383_SEE | R163: BUCHA DE REDUCAO DE FERRO GALVANIZADO, COM ROSCA BSP, DE 1/2" X 1/4" | S163: UN | T163: 3
A164: S | B164: 2 | C164: S | D164: 0 | E164: 1 | F164: 8 | G164: 0 | H164: 0 | I164: 0 | J164: 0 | K164: 0 | M164: Serviço | N164: Serviço | O164: 1.8.0.0.5. | P164: AGETOP | Q164: 91021 | R164: LUVA GALVANIZADO DE REDUÇÃO 3/4" X 1/2" (GÁS) | S164: Un | T164: 2
A165: S | B165: 2 | C165: S | D165: 0 | E165: 1 | F165: 8 | G165: 0 | H165: 0 | I165: 0 | J165: 0 | K165: 0 | M165: Serviço | N165: Serviço | O165: 1.8.0.0.6. | P165: SINAPI | Q165: 92692 | R165: NIPLE, EM FERRO GALVANIZADO, CONEXÃO ROSQUEADA, DN 15 (1/2"), INSTALADO EM RAMAIS E SUB-RAMAIS DE GÁS - FORNECIMENTO E INSTALAÇÃO. AF_12/2015 | S165: UN | T165: 6
A166: S | B166: 2 | C166: S | D166: 0 | E166: 1 | F166: 8 | G166: 0 | H166: 0 | I166: 0 | J166: 0 | K166: 0 | M166: Serviço | N166: Serviço | O166: 1.8.0.0.7. | P166: AGETOP | Q166: 91031 | R166: NIPLE DUPLO 300 PSI 3/4" | S166: Un | T166: 6
A167: S | B167: 2 | C167: S | D167: 0 | E167: 1 | F167: 8 | G167: 0 | H167: 0 | I167: 0 | J167: 0 | K167: 0 | M167: Serviço | N167: Serviço | O167: 1.8.0.0.8. | P167: COMPOSIÇÃO | Q167: COMP 212_SEE | R167: NIPLE DE REDUÇÃO 1/2" X 1/4" BSP | S167: UN | T167: 4
A168: S | B168: 2 | C168: S | D168: 0 | E168: 1 | F168: 8 | G168: 0 | H168: 0 | I168: 0 | J168: 0 | K168: 0 | M168: Serviço | N168: Serviço | O168: 1.8.0.0.9. | P168: COMPOSIÇÃO | Q168: COMP 213_SEE | R168: NIPLE DE REDUÇÃO 3/4" X 1/2" BSP | S168: UN | T168: 4
A169: S | B169: 2 | C169: S | D169: 0 | E169: 1 | F169: 8 | G169: 0 | H169: 0 | I169: 0 | J169: 0 | K169: 0 | M169: Serviço | N169: Serviço | O169: 1.8.0.0.10. | P169: SINAPI | Q169: 92688 | R169: TUBO DE AÇO GALVANIZADO COM COSTURA, CLASSE MÉDIA, CONEXÃO ROSQUEADA, DN 20 (3/4"), INSTALADO EM RAMAIS E SUB-RAMAIS DE GÁS - FORNECIMENTO E INSTALAÇÃO. AF_12/2015 | S169: M | T169: 18
A170: S | B170: 2 | C170: S | D170: 0 | E170: 1 | F170: 8 | G170: 0 | H170: 0 | I170: 0 | J170: 0 | K170: 0 | M170: Serviço | N170: Serviço | O170: 1.8.0.0.11. | P170: SINAPI | Q170: 92701 | R170: JOELHO 90 GRAUS, EM FERRO GALVANIZADO, CONEXÃO ROSQUEADA, DN 20 (3/4"), INSTALADO EM RAMAIS E SUB-RAMAIS DE GÁS - FORNECIMENTO E INSTALAÇÃO. AF_12/2015 | S170: UN | T170: 7
A171: S | B171: 2 | C171: S | D171: 0 | E171: 1 | F171: 8 | G171: 0 | H171: 0 | I171: 0 | J171: 0 | K171: 0 | M171: Serviço | N171: Serviço | O171: 1.8.0.0.12. | P171: COMPOSIÇÃO | Q171: COMP 237_SEE | R171: FITA ANTICORROSIVA | S171: M | T171: 7
A172: S | B172: 2 | C172: S | D172: 0 | E172: 1 | F172: 8 | G172: 0 | H172: 0 | I172: 0 | J172: 0 | K172: 0 | M172: Serviço | N172: Serviço | O172: 1.8.0.0.13. | P172: AGETOP | Q172: 91025 | R172: VÁLVULA ESFERICA LATÃO 3/4" | S172: Un | T172: 3
A173: S | B173: 2 | C173: S | D173: 0 | E173: 1 | F173: 8 | G173: 0 | H173: 0 | I173: 0 | J173: 0 | K173: 0 | M173: Serviço | N173: Serviço | O173: 1.8.0.0.14. | P173: AGETOP | Q173: 91019 | R173: TE PRETO 90º 3/4" NPT 300 LBS | S173: Un | T173: 2
A174: S | B174: 2 | C174: S | D174: 0 | E174: 1 | F174: 8 | G174: 0 | H174: 0 | I174: 0 | J174: 0 | K174: 0 | M174: Serviço | N174: Serviço | O174: 1.8.0.0.15. | P174: COMPOSIÇÃO | Q174: COMP 542_SEE | R174: VÁLVULA UGV 3/4" (S) LATÃO | S174: UN | T174: 3
A175: S | B175: 2 | C175: S | D175: 0 | E175: 1 | F175: 8 | G175: 0 | H175: 0 | I175: 0 | J175: 0 | K175: 0 | M175: Serviço | N175: Serviço | O175: 1.8.0.0.16. | P175: COMPOSIÇÃO | Q175: COMP 543_SEE | R175: VÁLVULA UGV 1/2" (S) LATÃO | S175: UN | T175: 3
A176: S | B176: 2 | C176: S | D176: 0 | E176: 1 | F176: 8 | G176: 0 | H176: 0 | I176: 0 | J176: 0 | K176: 0 | M176: Serviço | N176: Serviço | O176: 1.8.0.0.17. | P176: AGETOP | Q176: 91029 | R176: VALVULA DE RETENÇÃO LATÃO 1/2" X 7/16" NPT | S176: Un | T176: 3
A177: S | B177: 2 | C177: S | D177: 0 | E177: 1 | F177: 8 | G177: 0 | H177: 0 | I177: 0 | J177: 0 | K177: 0 | M177: Serviço | N177: Serviço | O177: 1.8.0.0.18. | P177: COMPOSIÇÃO | Q177: COMP 211_SEE | R177: REGULADOR DE 2º ESTÁGIO 5KG/H | S177: UN | T177: 3
A178: S | B178: 2 | C178: S | D178: 0 | E178: 1 | F178: 8 | G178: 0 | H178: 0 | I178: 0 | J178: 0 | K178: 0 | M178: Serviço | N178: Serviço | O178: 1.8.0.0.19. | P178: COMPOSIÇÃO | Q178: COMP 210_SEE | R178: REGULADOR DE 1º ESTÁGIO 60KG/H MODELO AP-40 COM MANÔMETRO | S178: UN | T178: 1
A179: S | B179: 2 | C179: S | D179: 0 | E179: 1 | F179: 8 | G179: 0 | H179: 0 | I179: 0 | J179: 0 | K179: 0 | M179: Serviço | N179: Serviço | O179: 1.8.0.0.20. | P179: AGETOP | Q179: 85003 | R179: EXTINTOR PO QUIMICO SECO (6 KG) - CAPACIDADE EXTINTORA 20 BC | S179: Un | T179: 1
A180: S | B180: 2 | C180: S | D180: 0 | E180: 1 | F180: 8 | G180: 0 | H180: 0 | I180: 0 | J180: =IF(OR($C180="S",$C180=0),0,MATCH(0,OFFSET($D180,1,$C180,ROW($C$240)-ROW($C180)),0)) -> 0 | K180: =IF(OR($C180="S",$C180=0),0,MATCH(OFFSET($D180,0,$C180)+1,OFFSET($D180,1,$C180,ROW($C$240)-ROW($C180)),0)) -> 0 | M180: Serviço | N180: Serviço | O180: 1.8.0.0.21. | P180: COMPOSIÇÃO | Q180: COMP 235_SEE | R180: PLACA DE SINALIZAÇÃO EM PVC COD 01 - (300X300) PROIBIDO FUMAR | S180: UN | T180: 2
A181: S | B181: 2 | C181: S | D181: 0 | E181: 1 | F181: 8 | G181: 0 | H181: 0 | I181: 0 | J181: 0 | K181: 0 | M181: Serviço | N181: Serviço | O181: 1.8.0.0.22. | P181: COMPOSIÇÃO | Q181: COMP 236_SEE | R181: PLACA DE SINALIZAÇÃO EM PVC COD 06 - (300X300) PERIGO INFLAMÁVEL | S181: UN | T181: 2
A182: S | B182: 2 | C182: S | D182: 0 | E182: 1 | F182: 8 | G182: 0 | H182: 0 | I182: 0 | J182: 0 | K182: 0 | M182: Serviço | N182: Serviço | O182: 1.8.0.0.23. | P182: AGETOP | Q182: 91043 | R182: BRAÇADEIRA METALICA TIPO "D" DIAM. 3/4" | S182: Un | T182: 7
A183: S | B183: 2 | C183: S | D183: 0 | E183: 1 | F183: 8 | G183: 0 | H183: 0 | I183: 0 | J183: 0 | K183: 0 | M183: Serviço | N183: Serviço | O183: 1.8.0.0.24. | P183: AGETOP | Q183: 71863 | R183: PARAFUSO P/BUCHA S-10 | S183: Un | T183: 14
A184: S | B184: 2 | C184: S | D184: 0 | E184: 1 | F184: 8 | G184: 0 | H184: 0 | I184: 0 | J184: 0 | K184: 0 | M184: Serviço | N184: Serviço | O184: 1.8.0.0.25. | P184: AGETOP | Q184: 70393 | R184: BUCHA DE NYLON S-10 | S184: Un | T184: 14
A185: S | B185: 2 | C185: S | D185: 0 | E185: 1 | F185: 8 | G185: 0 | H185: 0 | I185: 0 | J185: 0 | K185: 0 | M185: Serviço | N185: Serviço | O185: 1.8.0.0.26. | P185: AGETOP | Q185: 91045 | R185: SUPORTE PARA COLETOR | S185: Un | T185: 2
A186: S | B186: 2 | C186: S | D186: 0 | E186: 1 | F186: 8 | G186: 0 | H186: 0 | I186: 0 | J186: 0 | K186: 0 | M186: Serviço | N186: Serviço | O186: 1.8.0.0.27. | P186: COMPOSIÇÃO | Q186: COMP 045_SEE | R186: LAUDO DE ESTANQUEIDADE | S186: UN | T186: 1
A187: 2 | B187: 2 | C187: 2 | D187: 3 | E187: 1 | F187: 9 | G187: 0 | H187: 0 | I187: 0 | J187: 53 | K187: 3 | M187: Nível 2 | N187: Nível 2 | O187: 1.9. | P187: AGETOP | Q187: 91045 | R187: ALVENARIAS E DIVISÓRIAS | S187: Un
A188: =CHOOSE(1+LOG(1+2*(ORÇAMENTO.Nivel="Nível 1")+4*(ORÇAMENTO.Nivel="Nível 2")+8*(ORÇAMENTO.Nivel="Nível 3")+16*(ORÇAMENTO.Nivel="Nível 4")+32*(ORÇAMENTO.Nivel="Serviço"),2),0,1,2,3,4,"S") -> 3 | B188: 3 | C188: 3 | D188: 2 | E188: 1 | F188: 9 | G188: 1 | H188: 0 | I188: 0 | J188: 2 | K188: 18 | M188: Nível 3 | N188: Nível 3 | O188: 1.9.1. | P188: SINAPI | R188: SANITÁRIO PROFESSORES | S188: -
A189: =CHOOSE(1+LOG(1+2*(ORÇAMENTO.Nivel="Nível 1")+4*(ORÇAMENTO.Nivel="Nível 2")+8*(ORÇAMENTO.Nivel="Nível 3")+16*(ORÇAMENTO.Nivel="Nível 4")+32*(ORÇAMENTO.Nivel="Serviço"),2),0,1,2,3,4,"S") -> S | B189: 3 | C189: S | D189: 0 | E189: 1 | F189: 9 | G189: 1 | H189: 0 | I189: 0 | J189: 0 | K189: 0 | M189: Serviço | N189: Serviço | O189: 1.9.1.0.1. | P189: SINAPI | Q189: 87520 | R189: ALVENARIA DE VEDAÇÃO DE BLOCOS CERÂMICOS FURADOS NA HORIZONTAL DE 9X19X19CM (ESPESSURA 9CM) DE PAREDES COM ÁREA LÍQUIDA MAIOR OU IGUAL A 6M² COM VÃOS E ARGAMASSA DE ASSENTAMENTO COM PREPARO MANUAL. AF_06/2014 | S189: M2 | T189: 16.76
A190: =CHOOSE(1+LOG(1+2*(ORÇAMENTO.Nivel="Nível 1")+4*(ORÇAMENTO.Nivel="Nível 2")+8*(ORÇAMENTO.Nivel="Nível 3")+16*(ORÇAMENTO.Nivel="Nível 4")+32*(ORÇAMENTO.Nivel="Serviço"),2),0,1,2,3,4,"S") -> 2 | B190: 2 | C190: 2 | D190: 3 | E190: 1 | F190: 10 | G190: 0 | H190: 0 | I190: 0 | J190: 50 | K190: 3 | M190: Nível 2 | N190: Nível 2 | O190: 1.10. | P190: SINAPI | R190: IMPERMEABILIZAÇÃO | S190: -
A191: =CHOOSE(1+LOG(1+2*(ORÇAMENTO.Nivel="Nível 1")+4*(ORÇAMENTO.Nivel="Nível 2")+8*(ORÇAMENTO.Nivel="Nível 3")+16*(ORÇAMENTO.Nivel="Nível 4")+32*(ORÇAMENTO.Nivel="Serviço"),2),0,1,2,3,4,"S") -> 3 | B191: =IF(OR(C191="s",C191=0),OFFSET(B191,-1,0),C191) -> 3 | C191: =IF(OFFSET(C191,-1,0)="L",1,IF(OFFSET(C191,-1,0)=1,2,IF(OR(A191="s",A191=0),"S",IF(AND(OFFSET(C191,-1,0)=2,A191=4),3,IF(AND(OR(OFFSET(C191,-1,0)="s",OFFSET(C191,-1,0)=0),A191<>"s",A191>OFFSET(B191,-1,0)),OFFSET(B191,-1,0),A191))))) -> 3 | D191: =IF(OR(C191="S",C191=0),0,IF(ISERROR(K191),J191,SMALL(J191:K191,1))) -> 2 | E191: =IF($C191=1,OFFSET(E191,-1,0)+1,OFFSET(E191,-1,0)) -> 1 | F191: =IF($C191=1,0,IF($C191=2,OFFSET(F191,-1,0)+1,OFFSET(F191,-1,0))) -> 10 | G191: =IF(AND($C191<=2,$C191<>0),0,IF($C191=3,OFFSET(G191,-1,0)+1,OFFSET(G191,-1,0))) -> 1 | H191: =IF(AND($C191<=3,$C191<>0),0,IF($C191=4,OFFSET(H191,-1,0)+1,OFFSET(H191,-1,0))) -> 0 | I191: =IF(AND($C191<=4,$C191<>0),0,IF(AND($C191="S",$W191>0),OFFSET(I191,-1,0)+1,OFFSET(I191,-1,0))) -> 0 | J191: 2 | K191: 15 | L191: =IF(OR(W191>0,$C191=1),"F","") ->  | M191: Nível 3 | N191: =CHOOSE(1+LOG(1+2*(C191=1)+4*(C191=2)+8*(C191=3)+16*(C191=4)+32*(C191="S"),2),"","Nível 1","Nível 2","Nível 3","Nível 4","Serviço") -> Nível 3 | O191: 1.10.1. | P191: SINAPI | R191: FUNDAÇÃO | S191: -
A192: =CHOOSE(1+LOG(1+2*(ORÇAMENTO.Nivel="Nível 1")+4*(ORÇAMENTO.Nivel="Nível 2")+8*(ORÇAMENTO.Nivel="Nível 3")+16*(ORÇAMENTO.Nivel="Nível 4")+32*(ORÇAMENTO.Nivel="Serviço"),2),0,1,2,3,4,"S") -> S | B192: 3 | C192: S | D192: 0 | E192: 1 | F192: 10 | G192: 1 | H192: 0 | I192: 0 | J192: 0 | K192: 0 | M192: Serviço | N192: Serviço | O192: 1.10.1.0.1. | P192: SINAPI | Q192: 74106/1 | R192: IMPERMEABILIZACAO DE ESTRUTURAS ENTERRADAS, COM TINTA ASFALTICA, DUAS DEMAOS. | S192: M2 | T192: 3.11
A193: =CHOOSE(1+LOG(1+2*(ORÇAMENTO.Nivel="Nível 1")+4*(ORÇAMENTO.Nivel="Nível 2")+8*(ORÇAMENTO.Nivel="Nível 3")+16*(ORÇAMENTO.Nivel="Nível 4")+32*(ORÇAMENTO.Nivel="Serviço"),2),0,1,2,3,4,"S") -> 2 | B193: 2 | C193: 2 | D193: 4 | E193: 1 | F193: 11 | G193: 0 | H193: 0 | I193: 0 | J193: 47 | K193: 4 | M193: Nível 2 | N193: Nível 2 | O193: 1.11. | R193: ESQUADRIAS METÁLICAS | S193: -
A194: 3 | B194: 3 | C194: 3 | D194: 3 | E194: 1 | F194: 11 | G194: 1 | H194: 0 | I194: 0 | J194: 3 | K194: 12 | M194: Nível 3 | N194: Nível 3 | O194: 1.11.1. | P194: SINAPI | R194: SANITÁRIO PROFESSORES | S194: -
A195: S | B195: 3 | C195: S | D195: 0 | E195: 1 | F195: 11 | G195: 1 | H195: 0 | I195: 0 | J195: 0 | K195: 0 | M195: Serviço | N195: Serviço | O195: 1.11.1.0.1. | P195: AGETOP | Q195: 180509 | R195: PORTA ABRIR CH.P/WC PF-10 C/FERRAGENS | S195: m2 | T195: 2.52
A196: S | B196: 3 | C196: S | D196: 0 | E196: 1 | F196: 11 | G196: 1 | H196: 0 | I196: 0 | J196: 0 | K196: 0 | M196: Serviço | N196: Serviço | O196: 1.11.1.0.2. | P196: AGETOP | Q196: 180403 | R196: ESQ.MAXIMO AR CHAPA/VIDRO J1/J2/J7/J15 C/FERRAGENS | S196: m2 | T196: 1.1825
A197: 2 | B197: =IF(OR(C197="s",C197=0),OFFSET(B197,-1,0),C197) -> 2 | C197: =IF(OFFSET(C197,-1,0)="L",1,IF(OFFSET(C197,-1,0)=1,2,IF(OR(A197="s",A197=0),"S",IF(AND(OFFSET(C197,-1,0)=2,A197=4),3,IF(AND(OR(OFFSET(C197,-1,0)="s",OFFSET(C197,-1,0)=0),A197<>"s",A197>OFFSET(B197,-1,0)),OFFSET(B197,-1,0),A197))))) -> 2 | D197: =IF(OR(C197="S",C197=0),0,IF(ISERROR(K197),J197,SMALL(J197:K197,1))) -> 3 | E197: =IF($C197=1,OFFSET(E197,-1,0)+1,OFFSET(E197,-1,0)) -> 1 | F197: =IF($C197=1,0,IF($C197=2,OFFSET(F197,-1,0)+1,OFFSET(F197,-1,0))) -> 12 | G197: =IF(AND($C197<=2,$C197<>0),0,IF($C197=3,OFFSET(G197,-1,0)+1,OFFSET(G197,-1,0))) -> 0 | H197: =IF(AND($C197<=3,$C197<>0),0,IF($C197=4,OFFSET(H197,-1,0)+1,OFFSET(H197,-1,0))) -> 0 | I197: =IF(AND($C197<=4,$C197<>0),0,IF(AND($C197="S",$W197>0),OFFSET(I197,-1,0)+1,OFFSET(I197,-1,0))) -> 0 | J197: 43 | K197: 3 | L197: =IF(OR(W197>0,$C197=1),"F","") ->  | M197: Nível 2 | N197: =CHOOSE(1+LOG(1+2*(C197=1)+4*(C197=2)+8*(C197=3)+16*(C197=4)+32*(C197="S"),2),"","Nível 1","Nível 2","Nível 3","Nível 4","Serviço") -> Nível 2 | O197: 1.12. | R197: VIDROS | S197: -
A198: =CHOOSE(1+LOG(1+2*(ORÇAMENTO.Nivel="Nível 1")+4*(ORÇAMENTO.Nivel="Nível 2")+8*(ORÇAMENTO.Nivel="Nível 3")+16*(ORÇAMENTO.Nivel="Nível 4")+32*(ORÇAMENTO.Nivel="Serviço"),2),0,1,2,3,4,"S") -> 3 | B198: 3 | C198: 3 | D198: 2 | E198: 1 | F198: 12 | G198: 1 | H198: 0 | I198: 0 | J198: 2 | K198: 8 | M198: Nível 3 | N198: Nível 3 | O198: 1.12.1. | P198: SINAPI | R198: SANITÁRIO PROFESSORES | S198: -
A199: =CHOOSE(1+LOG(1+2*(ORÇAMENTO.Nivel="Nível 1")+4*(ORÇAMENTO.Nivel="Nível 2")+8*(ORÇAMENTO.Nivel="Nível 3")+16*(ORÇAMENTO.Nivel="Nível 4")+32*(ORÇAMENTO.Nivel="Serviço"),2),0,1,2,3,4,"S") -> S | B199: 3 | C199: S | D199: 0 | E199: 1 | F199: 12 | G199: 1 | H199: 0 | I199: 0 | J199: 0 | K199: 0 | M199: Serviço | N199: Serviço | O199: 1.12.1.0.1. | P199: SINAPI | Q199: 72117 | R199: VIDRO LISO COMUM TRANSPARENTE, ESPESSURA 4MM | S199: M2 | T199: 1.18
A200: =CHOOSE(1+LOG(1+2*(ORÇAMENTO.Nivel="Nível 1")+4*(ORÇAMENTO.Nivel="Nível 2")+8*(ORÇAMENTO.Nivel="Nível 3")+16*(ORÇAMENTO.Nivel="Nível 4")+32*(ORÇAMENTO.Nivel="Serviço"),2),0,1,2,3,4,"S") -> 2 | B200: 2 | C200: 2 | D200: 11 | E200: 1 | F200: 13 | G200: 0 | H200: 0 | I200: 0 | J200: 40 | K200: 11 | M200: Nível 2 | N200: Nível 2 | O200: 1.13. | R200: REVESTIMENTO DE PAREDE | S200: -
A201: 3 | B201: 3 | C201: 3 | D201: 5 | E201: 1 | F201: 13 | G201: 1 | H201: 0 | I201: 0 | J201: 10 | K201: 5 | M201: Nível 3 | N201: Nível 3 | O201: 1.13.1. | P201: SINAPI | R201: SANITÁRIO PROFESSORES | S201: -
A202: S | B202: 3 | C202: S | D202: 0 | E202: 1 | F202: 13 | G202: 1 | H202: 0 | I202: 0 | J202: 0 | K202: 0 | M202: Serviço | N202: Serviço | O202: 1.13.1.0.1. | P202: SINAPI | Q202: 87904 | R202: CHAPISCO APLICADO EM ALVENARIA (COM PRESENÇA DE VÃOS) E ESTRUTURAS DE CONCRETO DE FACHADA, COM COLHER DE PEDREIRO. ARGAMASSA TRAÇO 1:3 COM PREPARO MANUAL. AF_06/2014 | S202: M2 | T202: 33.52
A203: S | B203: 3 | C203: S | D203: 0 | E203: 1 | F203: 13 | G203: 1 | H203: 0 | I203: 0 | J203: 0 | K203: 0 | M203: Serviço | N203: Serviço | O203: 1.13.1.0.2. | P203: SINAPI | Q203: 87547 | R203: MASSA ÚNICA, PARA RECEBIMENTO DE PINTURA, EM ARGAMASSA TRAÇO 1:2:8, PREPARO MECÂNICO COM BETONEIRA 400L, APLICADA MANUALMENTE EM FACES INTERNAS DE PAREDES, ESPESSURA DE 10MM, COM EXECUÇÃO DE TALISCAS. AF_06/2014 | S203: M2 | T203: 9.88
A204: S | B204: 3 | C204: S | D204: 0 | E204: 1 | F204: 13 | G204: 1 | H204: 0 | I204: 0 | J204: 0 | K204: 0 | M204: Serviço | N204: Serviço | O204: 1.13.1.0.3. | P204: SINAPI | Q204: 87553 | R204: EMBOÇO, PARA RECEBIMENTO DE CERÂMICA, EM ARGAMASSA TRAÇO 1:2:8, PREPARO MECÂNICO COM BETONEIRA 400L, APLICADO MANUALMENTE EM FACES INTERNAS DE PAREDES, PARA AMBIENTE COM ÁREA MAIOR QUE 10M2, ESPESSURA DE 10MM, COM EXECUÇÃO DE TALISCAS. AF_06/2014 | S204: M2 | T204: 23.64
A205: S | B205: 3 | C205: S | D205: 0 | E205: 1 | F205: 13 | G205: 1 | H205: 0 | I205: 0 | J205: 0 | K205: 0 | M205: Serviço | N205: Serviço | O205: 1.13.1.0.4. | P205: SINAPI | Q205: 87273 | R205: REVESTIMENTO CERÂMICO PARA PAREDES INTERNAS COM PLACAS TIPO ESMALTADA EXTRA DE DIMENSÕES 33X45 CM APLICADAS EM AMBIENTES DE ÁREA MAIOR QUE 5 M² NA ALTURA INTEIRA DAS PAREDES. AF_06/2014 | S205: M2 | T205: 23.64
A206: 3 | B206: 3 | C206: 3 | D206: 3 | E206: 1 | F206: 13 | G206: 2 | H206: 0 | I206: 0 | J206: 5 | K206: 3 | M206: Nível 3 | N206: Nível 3 | O206: 1.13.2. | P206: SINAPI | R206: DESPENSA | S206: -
... 107 more rows

Sheet Resumo
B3: UNIDADE ESCOLAR | G3: CÓDIGO INEP
B4: =Orçamento!$O$5 -> CENTRO DE ENSINO EM PERÍODO INTEGRAL PROFESSORA IZABEL CHRISTINA DE SOUSA ORTIZ | G4: =Orçamento!V5 -> 52103498
B6: OBRA | G6: CIDADE
B7: =Orçamento!$O$8 -> REFORMA E AMPLIAÇÃO | G7: =Orçamento!$V$8 -> FORMOSA
B9: ENDEREÇO | G9: CRE
B10: =Orçamento!$R$11 -> RUA 65, PRAÇA N°04 S/N, PQ LAGO DE FORMOSA, CEP:73813-872 | G10: =Orçamento!$O$11 -> FORMOSA
B12: REFERÊNCIA | D12: DATA | G12: ÁREA TOTAL CONSTRUÍDA (M²)
B13: =CONCATENATE("AGETOP E SINAPI - ",Orçamento!$T$11) -> AGETOP E SINAPI - DESONERADA | D13: =Orçamento!$S$8 -> 2020-03-19 | G13: =Orçamento!$V$14 -> 2960.79
A14: FILTRO
B15: RESUMO GERAL DO ORÇAMENTO
A16: ↓ | B16: ITEM | C16: DESCRIÇÃO DOS SERVIÇOS | E16: UNID | F16: QUANT | G16: PREÇO SEM BDI | H16: PREÇO COM BDI | I16: PARTICIP. (%)
A17: =IF(H17>0,"F","") ->  | B17: 1. | C17: =Orçamento!$P293 -> REFORMA | E17: =IF(C17<>"","UN","") -> UN | F17: =IF(C17<>"",1,"") -> 1 | G17: =IFERROR(Orçamento!S293,"-") -> 0 | H17: =IFERROR(Orçamento!V293,"") -> 0 | I17: =Orçamento!X293 -> 100
A18: =IF(H18>0,"F","") ->  | B18: 2. | C18: =Orçamento!$P294 ->  | E18: =IF(C18<>"","UN","") ->  | F18: =IF(C18<>"",1,"") ->  | G18: =IFERROR(Orçamento!S294,"-") -> 0 | H18: =IFERROR(Orçamento!V294,"") -> 0 | I18: =Orçamento!X294 -> 0
A19: =IF(H19>0,"F","") ->  | B19: 3. | C19: =Orçamento!$P295 ->  | G19: =IFERROR(Orçamento!S295,"-") -> 0 | H19: =IFERROR(Orçamento!V295,"") -> 0 | I19: =Orçamento!X295 -> 0
B20: 4. | C20: =Orçamento!$P296 ->  | G20: =IFERROR(Orçamento!S296,"-") -> 0 | H20: =IFERROR(Orçamento!V296,"") -> 0 | I20: =Orçamento!X296 -> 0
B21: 5. | C21: =Orçamento!$P297 ->  | G21: =IFERROR(Orçamento!S297,"-") -> 0 | H21: =IFERROR(Orçamento!V297,"") -> 0 | I21: =Orçamento!X297 -> 0
B22: 6. | C22: =Orçamento!$P298 ->  | G22: =IFERROR(Orçamento!S298,"-") -> 0 | H22: =IFERROR(Orçamento!V298,"") -> 0 | I22: =Orçamento!X298 -> 0
B23: 7. | C23: =Orçamento!$P299 ->  | G23: =IFERROR(Orçamento!S299,"-") -> 0 | H23: =IFERROR(Orçamento!V299,"") -> 0 | I23: =Orçamento!X299 -> 0
B24: 8. | C24: =Orçamento!$P300 ->  | G24: =IFERROR(Orçamento!S300,"-") -> 0 | H24: =IFERROR(Orçamento!V300,"") -> 0 | I24: =Orçamento!X300 -> 0
B25: 9. | C25: =Orçamento!$P301 ->  | G25: =IFERROR(Orçamento!S301,"-") -> 0 | H25: =IFERROR(Orçamento!V301,"") -> 0 | I25: =Orçamento!X301 -> 0
B26: 10. | C26: =Orçamento!$P302 ->  | G26: =IFERROR(Orçamento!S302,"-") -> 0 | H26: =IFERROR(Orçamento!V302,"") -> 0 | I26: =Orçamento!X302 -> 0
B27: 11. | C27: =Orçamento!$P303 ->  | G27: =IFERROR(Orçamento!S303,"-") -> 0 | H27: =IFERROR(Orçamento!V303,"") -> 0 | I27: =Orçamento!X303 -> 0
B28: 12. | C28: =Orçamento!$P304 ->  | G28: =IFERROR(Orçamento!S304,"-") -> 0 | H28: =IFERROR(Orçamento!V304,"") -> 0 | I28: =Orçamento!X304 -> 0
B29: 13. | C29: =Orçamento!$P305 ->  | G29: =IFERROR(Orçamento!S305,"-") -> 0 | H29: =IFERROR(Orçamento!V305,"") -> 0 | I29: =Orçamento!X305 -> 0
B30: 14. | C30: =Orçamento!$P306 ->  | G30: =IFERROR(Orçamento!S306,"-") -> 0 | H30: =IFERROR(Orçamento!V306,"") -> 0 | I30: =Orçamento!X306 -> 0
B31: 15. | C31: =Orçamento!$P307 ->  | G31: =IFERROR(Orçamento!S307,"-") -> 0 | H31: =IFERROR(Orçamento!V307,"") -> 0 | I31: =Orçamento!X307 -> 0
B32: 16. | C32: =Orçamento!$P308 ->  | G32: =IFERROR(Orçamento!S308,"-") -> 0 | H32: =IFERROR(Orçamento!V308,"") -> 0 | I32: =Orçamento!X308 -> 0
B33: 17. | C33: =Orçamento!$P309 ->  | G33: =IFERROR(Orçamento!S309,"-") -> 0 | H33: =IFERROR(Orçamento!V309,"") -> 0 | I33: =Orçamento!X309 -> 0
B34: 18. | C34: =Orçamento!$P310 ->  | G34: =IFERROR(Orçamento!S310,"-") -> 0 | H34: =IFERROR(Orçamento!V310,"") -> 0 | I34: =Orçamento!X310 -> 0
B35: 19. | C35: =Orçamento!$P311 ->  | G35: =IFERROR(Orçamento!S311,"-") -> 0 | H35: =IFERROR(Orçamento!V311,"") -> 0 | I35: =Orçamento!X311 -> 0
B36: 20. | C36: =Orçamento!$P312 ->  | G36: =IFERROR(Orçamento!S312,"-") -> 0 | H36: =IFERROR(Orçamento!V312,"") -> 0 | I36: =Orçamento!X312 -> 0
A37: F | B37: TOTAL GERAL DO ORÇAMENTO (R$) | G37: =SUM(G17:G36) -> 0 | H37: =SUM(H17:H36) -> 0 | I37: =SUM(I17:I36) -> 100
A38: F
A39: F

Sheet Somatório
B3: UNIDADE ESCOLAR | E3: CÓDIGO INEP
B4: =Orçamento!$O$5 -> CENTRO DE ENSINO EM PERÍODO INTEGRAL PROFESSORA IZABEL CHRISTINA DE SOUSA ORTIZ | E4: =Orçamento!V5 -> 52103498
B6: OBRA | E6: CIDADE
B7: =Orçamento!$O$8 -> REFORMA E AMPLIAÇÃO | E7: =Orçamento!$V$8 -> FORMOSA
B9: ENDEREÇO | E9: CRE
B10: =Orçamento!$R$11 -> RUA 65, PRAÇA N°04 S/N, PQ LAGO DE FORMOSA, CEP:73813-872 | E10: =Orçamento!$O$11 -> FORMOSA
B12: REFERÊNCIA | D12: DATA | E12: ÁREA TOTAL CONSTRUÍDA (M²)
B13: =CONCATENATE("AGETOP E SINAPI - ",Orçamento!$T$11) -> AGETOP E SINAPI - DESONERADA | D13: =Orçamento!$S$8 -> 2020-03-19 | E13: =Orçamento!$V$14 -> 2960.79
A14: FILTRO
B15: SOMATÓRIO DE SERVIÇOS
A16: ↓ | B16: ITEM | C16: DESCRIÇÃO DOS SERVIÇOS | D16: PREÇO SEM BDI (R$) | E16: PREÇO COM BDI (R$) | F16: PARTIC. ( % )
A17: =IF(D17>0,"F","") ->  | B17: a. | C17: =Orçamento!P259 -> SERVIÇOS PRELIMINARES | D17: =Orçamento!S259 -> 0 | E17: =Orçamento!V259 -> 0 | F17: =Orçamento!X259 -> 0
A18: =IF(D18>0,"F","") ->  | B18: b. | C18: =Orçamento!P260 -> TRANSPORTES | D18: =Orçamento!S260 -> 0 | E18: =Orçamento!V260 -> 0 | F18: =Orçamento!X260 -> 0
B19: c. | C19: =Orçamento!P261 -> SERVIÇO EM TERRA | D19: =Orçamento!S261 -> 0 | E19: =Orçamento!V261 -> 0 | F19: =Orçamento!X261 -> 0
B20: d. | C20: =Orçamento!P262 -> FUNDAÇÕES E SONDAGENS | D20: =Orçamento!S262 -> 0 | E20: =Orçamento!V262 -> 0 | F20: =Orçamento!X262 -> 0
B21: e. | C21: =Orçamento!P263 -> ESTRUTURA | D21: =Orçamento!S263 -> 0 | E21: =Orçamento!V263 -> 0 | F21: =Orçamento!X263 -> 0
B22: f. | C22: =Orçamento!P264 -> INSTALAÇÕES ELÉTRICAS | D22: =Orçamento!S264 -> 0 | E22: =Orçamento!V264 -> 0 | F22: =Orçamento!X264 -> 0
B23: g. | C23: =Orçamento!P265 -> INSTALAÇÕES HIDROSSANITÁRIAS | D23: =Orçamento!S265 -> 0 | E23: =Orçamento!V265 -> 0 | F23: =Orçamento!X265 -> 0
B24: h. | C24: =Orçamento!P266 -> INSTALAÇÕES ESPECIAIS | D24: =Orçamento!S266 -> 0 | E24: =Orçamento!V266 -> 0 | F24: =Orçamento!X266 -> 0
B25: i. | C25: =Orçamento!P267 -> ALVENARIAS E DIVISÓRIAS | D25: =Orçamento!S267 -> 0 | E25: =Orçamento!V267 -> 0 | F25: =Orçamento!X267 -> 0
B26: j. | C26: =Orçamento!P268 -> ALVENARIA AUTO-PORTANTE | D26: =Orçamento!S268 -> 0 | E26: =Orçamento!V268 -> 0 | F26: =Orçamento!X268 -> 0
B27: k. | C27: =Orçamento!P269 -> IMPERMEABILIZAÇÃO | D27: =Orçamento!S269 -> 0 | E27: =Orçamento!V269 -> 0 | F27: =Orçamento!X269 -> 0
B28: l. | C28: =Orçamento!P270 -> ISOLAMENTO TÉRMICO E ACÚSTICO | D28: =Orçamento!S270 -> 0 | E28: =Orçamento!V270 -> 0 | F28: =Orçamento!X270 -> 0
B29: m. | C29: =Orçamento!P271 -> ESTRUTURA DE MADEIRA | D29: =Orçamento!S271 -> 0 | E29: =Orçamento!V271 -> 0 | F29: =Orçamento!X271 -> 0
B30: n. | C30: =Orçamento!P272 -> ESTRUTURAS METÁLICAS | D30: =Orçamento!S272 -> 0 | E30: =Orçamento!V272 -> 0 | F30: =Orçamento!X272 -> 0
B31: o. | C31: =Orçamento!P273 -> COBERTURAS | D31: =Orçamento!S273 -> 0 | E31: =Orçamento!V273 -> 0 | F31: =Orçamento!X273 -> 0
B32: p. | C32: =Orçamento!P274 -> ESQUADRIAS DE MADEIRA | D32: =Orçamento!S274 -> 0 | E32: =Orçamento!V274 -> 0 | F32: =Orçamento!X274 -> 0
B33: q. | C33: =Orçamento!P275 -> ESQUADRIAS METÁLICAS | D33: =Orçamento!S275 -> 0 | E33: =Orçamento!V275 -> 0 | F33: =Orçamento!X275 -> 0
B34: r. | C34: =Orçamento!P276 -> VIDROS | D34: =Orçamento!S276 -> 0 | E34: =Orçamento!V276 -> 0 | F34: =Orçamento!X276 -> 0
B35: s. | C35: =Orçamento!P277 -> REVESTIMENTO DE PAREDE | D35: =Orçamento!S277 -> 0 | E35: =Orçamento!V277 -> 0 | F35: =Orçamento!X277 -> 0
B36: t. | C36: =Orçamento!P278 -> FORROS | D36: =Orçamento!S278 -> 0 | E36: =Orçamento!V278 -> 0 | F36: =Orçamento!X278 -> 0
B37: u. | C37: =Orçamento!P279 -> REVESTIMENTO DE PISO | D37: =Orçamento!S279 -> 0 | E37: =Orçamento!V279 -> 0 | F37: =Orçamento!X279 -> 0
B38: v. | C38: =Orçamento!P280 -> FERRAGENS | D38: =Orçamento!S280 -> 0 | E38: =Orçamento!V280 -> 0 | F38: =Orçamento!X280 -> 0
B39: w. | C39: =Orçamento!P281 -> MARCENARIA | D39: =Orçamento!S281 -> 0 | E39: =Orçamento!V281 -> 0 | F39: =Orçamento!X281 -> 0
B40: x. | C40: =Orçamento!P282 -> ADMINISTRAÇÃO | D40: =Orçamento!S282 -> 0 | E40: =Orçamento!V282 -> 0 | F40: =Orçamento!X282 -> 0
B41: y. | C41: =Orçamento!P283 -> PINTURA | D41: =Orçamento!S283 -> 0 | E41: =Orçamento!V283 -> 0 | F41: =Orçamento!X283 -> 0
B42: z. | C42: =Orçamento!P284 -> DIVERSOS | D42: =Orçamento!S284 -> 0 | E42: =Orçamento!V284 -> 0 | F42: =Orçamento!X284 -> 0
A43: F | B43: TOTAL GERAL DO ORÇAMENTO | D43: =SUM(D17:D42) -> 0 | E43: =SUM(E17:E42) -> 0 | F43: =SUM(F17:F42) -> 0
B45: (*) Para itens da AGETOP, os vidros não estão inclusos nas esquadrias e já foram considerados os custos de contramarco para as esquadrias de alumínio;

Sheet Cronog_30_Dias
B3: UNIDADE ESCOLAR | I3: PRAZO
B4: =[1]Orçamento!$O$5 -> COLÉGIO ESTADUAL PROFESSOR ANTÔNIO MARÇO DE ARAUJO | I4: 30 DIAS CORRIDOS
B6: OBRA | I6: DATA
B7: =[1]Orçamento!$O$8 -> REFORMA | I7: =[1]Orçamento!$S$8 -> 2019-12-12
B9: LOCAL | I9: ÁREA TOTAL CONSTRUÍDA (M²)
A10: FILTRO | B10: =[1]Orçamento!$V$8 -> LUZIÂNIA | I10: =[1]Orçamento!$S$14 -> 1463.27
B12: CRONOGRAMA - FÍSICO FINANCEIRO
A13: ↓ | B13: CUSTO TOTAL: | C13: =D93 ->  | D13: VALOR | E13: Dias: | F13: 15 | J13: 30 | N13: TOTAL
B14: DESCRIÇÃO DOS SERVIÇOS | E14: % | F14: 1ª PARCELA | J14: 2ª PARCELA
A15: =IF(D15>0,"F","") ->  | B15: SERVIÇOS PRELIMINARES | D15: =#REF! ->  | E15: =Orçamento!X259 -> 0 | F15: =ROUND(F17*$D$15,2) ->  | J15: =ROUND(J17*$D$15,2) ->  | N15: =SUM(F15:M15) -> 
A16: =IF(A15="F",A15,"") -> 
A17: =IF(A16="F",A16,"") ->  | F17: 1 | J17: =1-F17 -> 0 | N17: =IFERROR(E15/100,"") -> 0
A18: =IF(D18>0,"F","") ->  | B18: TRANSPORTES | D18: =#REF! ->  | E18: =Orçamento!X260 -> 0 | F18: =ROUND(F20*$D$18,2) ->  | J18: =ROUND(J20*$D$18,2) ->  | N18: =SUM(F18:M18) -> 
A19: =IF(A18="F",A18,"") -> 
A20: =IF(A19="F",A19,"") ->  | F20: 0.48 | J20: =1-F20 -> 0.52 | N20: =IFERROR(E18/100,"") -> 0
A21: =IF(D21>0,"F","") ->  | B21: SERVIÇO EM TERRA | D21: =#REF! ->  | E21: =Orçamento!X261 -> 0 | F21: =ROUND(F23*$D$21,2) ->  | J21: =ROUND(J23*$D$21,2) ->  | N21: =SUM(F21:M21) -> 
A22: =IF(A21="F",A21,"") -> 
A23: =IF(A22="F",A22,"") ->  | F23: 1 | J23: =1-F23 -> 0 | N23: =IFERROR(E21/100,"") -> 0
A24: =IF(D24>0,"F","") ->  | B24: FUNDAÇÕES E SONDAGENS | D24: =#REF! ->  | E24: =Orçamento!X262 -> 0 | F24: =ROUND(F26*$D$24,2) ->  | J24: =ROUND(J26*$D$24,2) ->  | N24: =SUM(F24:M24) -> 
A25: =IF(A24="F",A24,"") -> 
A26: =IF(A25="F",A25,"") ->  | F26: 1 | J26: =1-F26 -> 0 | N26: =IFERROR(E24/100,"") -> 0
A27: =IF(D27>0,"F","") ->  | B27: ESTRUTURA | D27: =#REF! ->  | E27: =Orçamento!X263 -> 0 | F27: =ROUND(F29*$D$27,2) ->  | J27: =ROUND(J29*$D$27,2) ->  | N27: =SUM(F27:M27) -> 
A28: =IF(A27="F",A27,"") -> 
A29: =IF(A28="F",A28,"") ->  | F29: 0.49 | J29: =1-F29 -> 0.51 | N29: =IFERROR(E27/100,"") -> 0
A30: =IF(D30>0,"F","") ->  | B30: INST.ELET/TELEFÔNICA/CABEAMENTO ESTRUTURADO | D30: =#REF! ->  | E30: =Orçamento!X264 -> 0 | F30: =ROUND(F32*$D$30,2) ->  | J30: =ROUND(J32*$D$30,2) ->  | N30: =SUM(F30:M30) -> 
A31: =IF(A30="F",A30,"") -> 
A32: =IF(A31="F",A31,"") ->  | F32: 0.4 | J32: =1-F32 -> 0.6 | N32: =IFERROR(E30/100,"") -> 0
A33: =IF(D33>0,"F","") ->  | B33: INSTALAÇÕES HIDROSSANITÁRIAS | D33: =#REF! ->  | E33: =Orçamento!X265 -> 0 | F33: =ROUND(F35*$D$33,2) ->  | J33: =ROUND(J35*$D$33,2) ->  | N33: =SUM(F33:M33) -> 
A34: =IF(A33="F",A33,"") -> 
A35: =IF(A34="F",A34,"") ->  | F35: 0.48 | J35: =1-F35 -> 0.52 | N35: =IFERROR(E33/100,"") -> 0
A36: =IF(D36>0,"F","") ->  | B36: INSTALAÇÕES ESPECIAIS | D36: =#REF! ->  | E36: =Orçamento!X266 -> 0 | F36: =ROUND(F38*$D$36,2) ->  | J36: =ROUND(J38*$D$36,2) ->  | N36: =SUM(F36:M36) -> 
A37: =IF(A36="F",A36,"") -> 
A38: =IF(A37="F",A37,"") ->  | F38: 1 | J38: =1-F38 -> 0 | N38: =IFERROR(E36/100,"") -> 0
A39: =IF(D39>0,"F","") ->  | B39: ALVENARIA E DIVISÓRIAS | D39: =#REF! ->  | E39: =Orçamento!X267 -> 0 | F39: =ROUND(F41*$D$39,2) ->  | J39: =ROUND(J41*$D$39,2) ->  | N39: =SUM(F39:M39) -> 
A40: =IF(A39="F",A39,"") -> 
A41: =IF(A40="F",A40,"") ->  | F41: 1 | J41: =1-F41 -> 0 | N41: =IFERROR(E39/100,"") -> 0
A42: =IF(D42>0,"F","") ->  | B42: ALVENARIA AUTO-PORTANTE | D42: =[1]Orçamento!V93 -> 0 | E42: =[1]Orçamento!X93 -> 0 | F42: =ROUND(F44*$D$42,2) -> 0 | J42: =ROUND(J44*$D$42,2) -> 0 | N42: =SUM(F42:M42) -> 0
A43: =IF(A42="F",A42,"") -> 
A44: =IF(A43="F",A43,"") ->  | F44: 1 | J44: =1-F44 -> 0 | N44: =IFERROR(E42/100,"") -> 0
A45: =IF(D45>0,"F","") ->  | B45: IMPERMEABILIZAÇÃO | D45: =[3]Cronog_60_Dias!D45 -> 0 | E45: =[1]Orçamento!X94 -> 0.29 | F45: =ROUND(F47*$D$45,2) -> 0 | J45: =ROUND(J47*$D$45,2) -> 0 | N45: =SUM(F45:M45) -> 0
A46: =IF(A45="F",A45,"") -> 
A47: =IF(A46="F",A46,"") ->  | F47: 1 | J47: =1-F47 -> 0 | N47: =IFERROR(E45/100,"") -> 0.0029
A48: =IF(D48>0,"F","") ->  | B48: ISOLAMENTO TÉRMICO E ACÚSTICO | D48: =[1]Orçamento!V95 -> 0 | E48: =[1]Orçamento!X95 -> 0 | F48: =ROUND(F50*$D$48,2) -> 0 | J48: =ROUND(J50*$D$48,2) -> 0 | N48: =SUM(F48:M48) -> 0
A49: =IF(A48="F",A48,"") -> 
A50: =IF(A49="F",A49,"") ->  | F50: 0.5 | J50: =1-F50 -> 0.5 | N50: =IFERROR(E48/100,"") -> 0
A51: =IF(D51>0,"F","") ->  | B51: ESTRUTURA DE MADEIRA | E51: =[1]Orçamento!X96 -> 41.12 | F51: =ROUND(F53*$D$51,2) -> 0 | J51: =ROUND(J53*$D$51,2) -> 0 | N51: =SUM(F51:M51) -> 0
A52: =IF(A51="F",A51,"") -> 
A53: =IF(A52="F",A52,"") ->  | F53: 0.4 | J53: =1-F53 -> 0.6 | N53: =IFERROR(E51/100,"") -> 0.4112
A54: =IF(D54>0,"F","") ->  | B54: ESTRUTURA METÁLICA | D54: =#REF! ->  | E54: =Orçamento!X275 -> 0 | F54: =ROUND(F56*$D$54,2) ->  | J54: =ROUND(J56*$D$54,2) ->  | N54: =SUM(F54:M54) -> 
A55: =IF(A54="F",A54,"") -> 
A56: =IF(A55="F",A55,"") ->  | F56: 0.35 | J56: =1-F56 -> 0.65 | N56: =IFERROR(E54/100,"") -> 0
A57: =IF(D57>0,"F","") ->  | B57: COBERTURAS | E57: =[1]Orçamento!X98 -> 14.95 | F57: =ROUND(F59*$D$57,2) -> 0 | J57: =ROUND(J59*$D$57,2) -> 0 | N57: =SUM(F57:M57) -> 0
A58: =IF(A57="F",A57,"") -> 
A59: =IF(A58="F",A58,"") ->  | F59: 0 | J59: =1-F59 -> 1 | N59: =IFERROR(E57/100,"") -> 0.1495
A60: =IF(D60>0,"F","") ->  | B60: ESQUADRIAS DE MADEIRA | D60: =[1]Orçamento!V99 -> 0 | E60: =[1]Orçamento!X99 -> 0 | F60: =ROUND(F62*$D$60,2) -> 0 | J60: =ROUND(J62*$D$60,2) -> 0 | N60: =SUM(F60:M60) -> 0
A61: =IF(A60="F",A60,"") -> 
A62: =IF(A61="F",A61,"") ->  | F62: 0.54 | J62: =1-F62 -> 0.46 | N62: =IFERROR(E60/100,"") -> 0
A63: =IF(D63>0,"F","") ->  | B63: ESQUADRIAS METÁLICAS | D63: =[1]Orçamento!V100 -> 0 | E63: =[1]Orçamento!X100 -> 0 | F63: =ROUND(F65*$D$63,2) -> 0 | J63: =ROUND(J65*$D$63,2) -> 0 | N63: =SUM(F63:M63) -> 0
A64: =IF(A63="F",A63,"") -> 
A65: =IF(A64="F",A64,"") ->  | F65: 0.49 | J65: =1-F65 -> 0.51 | N65: =IFERROR(E63/100,"") -> 0
A66: =IF(D66>0,"F","") ->  | B66: VIDROS | D66: =#REF! ->  | E66: =Orçamento!X276 -> 0 | F66: =ROUND(F68*$D$66,2) ->  | J66: =ROUND(J68*$D$66,2) ->  | N66: =SUM(F66:M66) -> 
A67: =IF(A66="F",A66,"") -> 
A68: =IF(A67="F",A67,"") ->  | F68: 0 | J68: =1-F68 -> 1 | N68: =IFERROR(E66/100,"") -> 0
A69: =IF(D69>0,"F","") ->  | B69: REVESTIMENTO DE PAREDE | D69: =#REF! ->  | E69: =Orçamento!X277 -> 0 | F69: =ROUND(F71*$D$69,2) ->  | J69: =ROUND(J71*$D$69,2) ->  | N69: =SUM(F69:M69) -> 
A70: =IF(A69="F",A69,"") -> 
A71: =IF(A70="F",A70,"") ->  | F71: 0.32 | J71: =1-F71 -> 0.68 | N71: =IFERROR(E69/100,"") -> 0
A72: =IF(D72>0,"F","") ->  | B72: FORROS | D72: =[1]Orçamento!V103 -> 0 | E72: =[1]Orçamento!X103 -> 0 | F72: =ROUND(F74*$D$72,2) -> 0 | J72: =ROUND(J74*$D$72,2) -> 0 | N72: =SUM(F72:M72) -> 0
A73: =IF(A72="F",A72,"") -> 
A74: =IF(A73="F",A73,"") ->  | F74: 0.24 | J74: =1-F74 -> 0.76 | N74: =IFERROR(E72/100,"") -> 0
A75: =IF(D75>0,"F","") ->  | B75: REVESTIMENTO DE PISO | D75: =#REF! ->  | E75: =Orçamento!X279 -> 0 | F75: =ROUND(F77*$D$75,2) ->  | J75: =ROUND(J77*$D$75,2) ->  | N75: =SUM(F75:M75) -> 
A76: =IF(A75="F",A75,"") -> 
A77: =IF(A76="F",A76,"") ->  | F77: 0.49 | J77: =1-F77 -> 0.51 | N77: =IFERROR(E75/100,"") -> 0
A78: =IF(D78>0,"F","") ->  | B78: FERRAGENS | D78: =[1]Orçamento!V105 -> 0 | E78: =[1]Orçamento!X105 -> 0 | F78: =ROUND(F80*$D$78,2) -> 0 | J78: =ROUND(J80*$D$78,2) -> 0 | N78: =SUM(F78:M78) -> 0
A79: =IF(A78="F",A78,"") -> 
A80: =IF(A79="F",A79,"") ->  | F80: 0 | J80: =1-F80 -> 1 | N80: =IFERROR(E78/100,"") -> 0
A81: =IF(D81>0,"F","") ->  | B81: MARCENARIA | D81: =[1]Orçamento!V106 -> 0 | E81: =[1]Orçamento!X106 -> 0 | F81: =ROUND(F83*$D$81,2) -> 0 | J81: =ROUND(J83*$D$81,2) -> 0 | N81: =SUM(F81:M81) -> 0
A82: =IF(A81="F",A81,"") -> 
A83: =IF(A82="F",A82,"") ->  | F83: 0.4 | J83: =1-F83 -> 0.6 | N83: =IFERROR(E81/100,"") -> 0
A84: =IF(D84>0,"F","") ->  | B84: ADMINISTRAÇÃO - MENSALISTAS | D84: =#REF! ->  | E84: =Orçamento!X282 -> 0 | F84: =ROUND(F86*$D$84,2) ->  | J84: =ROUND(J86*$D$84,2) ->  | N84: =SUM(F84:M84) -> 
A85: =IF(A84="F",A84,"") -> 
A86: =IF(A85="F",A85,"") ->  | F86: 0.49 | J86: =1-F86 -> 0.51 | N86: =IFERROR(E84/100,"") -> 0
A87: =IF(D87>0,"F","") ->  | B87: PINTURA | D87: =#REF! ->  | E87: =Orçamento!X283 -> 0 | F87: =ROUND(F89*$D$87,2) ->  | J87: =ROUND(J89*$D$87,2) ->  | N87: =SUM(F87:M87) -> 
A88: =IF(A87="F",A87,"") -> 
A89: =IF(A88="F",A88,"") ->  | F89: 0 | J89: =1-F89 -> 1 | N89: =IFERROR(E87/100,"") -> 0
A90: =IF(D90>0,"F","") ->  | B90: DIVERSOS | D90: =#REF! ->  | E90: =Orçamento!X284 -> 0 | F90: =ROUND(F92*$D$90,2) ->  | J90: =ROUND(J92*$D$90,2) ->  | N90: =SUM(F90:M90) -> 
A91: =IF(A90="F",A90,"") -> 
A92: =IF(A91="F",A91,"") ->  | F92: 0.46 | J92: =1-F92 -> 0.54 | N92: =IFERROR(E90/100,"") -> 0
A93: F | B93: CUSTO DO ORÇAMENTO | D93: =SUM(D15:D92) ->  | E93: =SUM(E15:E92) -> 56.36 | F93: =F15+F18+F21+F24+F27+F30+F33+F36+F39+F42+F45+F48+F51+F54+F57+F60+F63+F66+F69+F72+F75+F78+F81+F84+F87+F90 ->  | J93: =J15+J18+J21+J24+J27+J30+J33+J36+J39+J42+J45+J48+J51+J54+J57+J60+J63+J66+J69+J72+J75+J78+J81+J84+J87+J90 ->  | N93: =N15+N18+N21+N24+N27+N30+N33+N36+N39+N42+N45+N48+N51+N54+N57+N60+N63+N66+N69+N72+N75+N78+N81+N84+N87+N90 -> 
A94: F | B94: PERCENTUAIS: | F94: =IFERROR(F93/D93,"") ->  | J94: =IFERROR(J93/D93,"") ->  | N94: =SUM(F94:M94) -> 0
A95: F | B95: TOTAIS ACUMULADOS: | F95: =F93 ->  | J95: =F95+J93 -> 
A96: F | B96: PERCENTUAIS ACUMULADOS: | F96: =F94 ->  | J96: =IFERROR(F96+J94,"") -> 
A97: F
A98: F | B98: OBSERVAÇÕES:
A99: F | B99: Os pagamentos somente poderão ser efetuados mediante medição e atesto pelos técnicos da Secretaria da Educação.

Sheet Composição BDI
A3: UNIDADE ESCOLAR
A4: =Orçamento!$O$5 -> CENTRO DE ENSINO EM PERÍODO INTEGRAL PROFESSORA IZABEL CHRISTINA DE SOUSA ORTIZ
A6: OBRA
A7: =Orçamento!$O$8 -> REFORMA E AMPLIAÇÃO
A9: ENDEREÇO
A10: =Orçamento!$R$11 -> RUA 65, PRAÇA N°04 S/N, PQ LAGO DE FORMOSA, CEP:73813-872
A12: CIDADE
A13: =Orçamento!$V$8 -> FORMOSA
A15: CRE
A16: =Orçamento!$O$11 -> FORMOSA
A18: DETALHAMENTO DA COMPOSIÇÃO DE BDI
A19: COMPOSIÇÃO BDI PARA OBRAS CIVIS | F19: BDI CONSTRUÇÃO E REFORMA
A20: DESCRIÇÃO | B20: COEF. | C20: TAXA % (a.m) | D20: % no preço de venda | F20: Situação | G20: 1º Quartil | H20: Médio | I20: 3º Quartil
A21: 1) COFINS | B21: 1 | C21: 0.03 | D21: =C21 -> 0.03 | F21: =IF(OR(C21<G21,C21>I21),"FORA DO INTERVALO","OK") -> OK | G21: 0.03 | H21: 0.03 | I21: 0.03
A22: 2) PIS | B22: 1 | C22: 0.0065 | D22: =C22 -> 0.0065 | F22: =IF(OR(C22<G22,C22>I22),"FORA DO INTERVALO","OK") -> OK | G22: 0.0065 | H22: 0.0065 | I22: 0.0065
A23: 3) ISSQN | B23: 1 | C23: =IFERROR(VLOOKUP($A$13,#REF!,10,FALSE())/100,0) -> 0 | D23: =C23*B23 -> 0 | F23: FORA DO INTERVALO | G23: 0.02 | H23: 0.035 | I23: 0.05
A24: 4) CPRB | B24: 1 | C24: =IF(Orçamento!$T$11="DESONERADA",4.5%,0) -> 0.045 | D24: =C24 -> 0.045 | F24: OK | G24: 0.045 | H24: 0.045 | I24: 0.045
A25: 5) Administração Central | B25: 1 | C25: 0.045 | D25: 0.045 | F25: OK | G25: 0.03 | H25: 0.04 | I25: 0.055
A26: 6) Despesas Financeiras | B26: 1 | C26: 0.0056 | D26: 0.0056 | F26: FORA DO INTERVALO | G26: 0.0059 | H26: 0.0123 | I26: 0.0139
A27: 7) Seguros + Garantias | B27: 1 | C27: 0.0012 | D27: 0.0012 | F27: FORA DO INTERVALO | G27: 0.008 | H27: 0.008 | I27: 0.01
A28: 8) Risco | B28: 1 | C28: 0.0097 | D28: 0.0097 | F28: OK | G28: 0.0097 | H28: 0.0127 | I28: 0.0127
A29: 9) Lucro | B29: 1 | C29: 0.075 | D29: 0.075 | F29: OK | G29: 0.0616 | H29: 0.074 | I29: 0.0896
A30: BDI - FINAL | D30: 0.263363606 | F30: =IF(OR(D30<G30,D30>I30),"FORA DO INTERVALO","OK") -> FORA DO INTERVALO | G30: 0.2034 | H30: 0.2212 | I30: 0.25
A32: Notas:
A33: (1) e (2) Alíquota definida por lei.
A34: (3) Alíquota e base de cálculo definidas pela legislação municipal.
A35: (4) Alíquota definida pelas leis 12.546/11, 12844/13 e 13.161/15 (CPRB – contribuição previdenciária sobre a receita bruta).
A36: (5) Valores definidos a partir dos limites no Acórdão nº 2.622/2013 - TCU – Plenário. Valores entre o 1º e 3º quartis.
A37: (6) Valor calculado pela expressão matemática do acórdão 2.369/2011 – TCU – Plenário e disponibilizado pela AGETOP em dezembro de 2018. (Foi utilizado para o cálculo a média da Taxa SELIC no período de 11/2017 a 10/2018)
A39: (7) Valores definidos pela AGETOP a partir dos limites no Acórdão nº 2.622/2013 - TCU – Plenário. Valores médios. Observação da AGETOP: (Seguros contra erros de execução, incêndio e explosão, danos da natureza (vendaval, destelhamento, alagamento, inundação, desmoronamento, geadas etc.), emprego de material defeituoso ou inadequado, roubo e/ou furto qualificado, quebra de equipamentos, desmoronamento de estrutura, nas modalidades de Obras Civis em Construção (OCC); Instalação e Montagem (IM); e Obras Civis em Construção e Instalação e Montagem (OCC/IM). Bem como coberturas adicionais para ampliação dessas coberturas básicas, como: cobertura de responsabilidade civil geral, cobertura de responsabilidade civil cruzada, cobertura de despesas extraordinárias, cobertura de tumultos, cobertura de desentulho do local, cobertura de riscos do fabricante, dentre outras, incluindo o seguro de vida em grupo regido pela convenção coletiva dos trabalhadores na indústria da construção civil). A partir de 24/02/2015 por intermédio da Portaria 449/2015 a Presidência da AGETOP, na pessoa do Senhor Jayme Eduardo Rincon, determinou a exclusão dos valores referentes aos Seguros de Risco de Engenharia e Responsabilidade Civil do Profissional na composição do cálculo do B.D.I..
A40: (8) Valores definidos a partir dos limites no Acórdão nº 2.622/2013 - TCU – Plenário. Valores entre 1º e 3° quartis.
A41: (9) Valores definidos a partir dos limites definidos no Acórdão nº 2.622/2013 - TCU – Plenário. Valores adotados e praticados no mercado ( “ ex ante ” ) ou aqueles entre os 1º e 3º quartis.
A43: (*) A fórmula para estipulação da taxa de BDI estimado adotado é a mesma que foi aplicada para a obtenção das tabelas contidas no Acórdão n. 2.622/2013 – TCUPlenário
A45: Obs.: Para obras com valores superiores a R$ 20.000.000,00 sugere-se recalcular o BDI, dimensionando as taxas de administração central e lucro para patamares inferiores ao estipulado acima.

Sheet Relatório CENTRAL
B3: UNIDADE ESCOLAR | D3: CIDADE
B4: =Orçamento!$O$5 -> CENTRO DE ENSINO EM PERÍODO INTEGRAL PROFESSORA IZABEL CHRISTINA DE SOUSA ORTIZ | D4: =Orçamento!$V$8 -> FORMOSA
B6: OBRA | D6: CRE
B7: =Orçamento!$O$8 -> REFORMA E AMPLIAÇÃO | D7: =Orçamento!$O$11 -> FORMOSA
B9: ENDEREÇO | D9: DATA
A10: FILTRO | B10: =Orçamento!$R$11 -> RUA 65, PRAÇA N°04 S/N, PQ LAGO DE FORMOSA, CEP:73813-872 | D10: =Orçamento!$S$8 -> 2020-03-19
B12: RELATÓRIO CENTRAL
A13: ↓ | B13: CÓDIGO | C13: ETAPA | D13: PREÇO (R$) C/ BDI | E13: PARTIC ( % )
A14: =IF(D14>0,"F","") ->  | B14: =Orçamento!O259 -> a. | C14: =Orçamento!P259 -> SERVIÇOS PRELIMINARES | D14: =Orçamento!V259 -> 0 | E14: =Orçamento!X259 -> 0
A15: =IF(D15>0,"F","") ->  | B15: =Orçamento!O260 -> b. | C15: =Orçamento!P260 -> TRANSPORTES | D15: =Orçamento!V260 -> 0 | E15: =Orçamento!X260 -> 0
B16: =Orçamento!O261 -> c. | C16: =Orçamento!P261 -> SERVIÇO EM TERRA | D16: =Orçamento!V261 -> 0 | E16: =Orçamento!X261 -> 0
B17: =Orçamento!O262 -> d. | C17: =Orçamento!P262 -> FUNDAÇÕES E SONDAGENS | D17: =Orçamento!V262 -> 0 | E17: =Orçamento!X262 -> 0
B18: =Orçamento!O263 -> e. | C18: =Orçamento!P263 -> ESTRUTURA | D18: =Orçamento!V263 -> 0 | E18: =Orçamento!X263 -> 0
B19: =Orçamento!O264 -> f. | C19: =Orçamento!P264 -> INSTALAÇÕES ELÉTRICAS | D19: =Orçamento!V264 -> 0 | E19: =Orçamento!X264 -> 0
B20: =Orçamento!O265 -> g. | C20: =Orçamento!P265 -> INSTALAÇÕES HIDROSSANITÁRIAS | D20: =Orçamento!V265 -> 0 | E20: =Orçamento!X265 -> 0
B21: =Orçamento!O266 -> h | C21: =Orçamento!P266 -> INSTALAÇÕES ESPECIAIS | D21: =Orçamento!V266 -> 0 | E21: =Orçamento!X266 -> 0
B22: =Orçamento!O267 -> i. | C22: =Orçamento!P267 -> ALVENARIAS E DIVISÓRIAS | D22: =Orçamento!V267 -> 0 | E22: =Orçamento!X267 -> 0
B23: =Orçamento!O268 -> j. | C23: =Orçamento!P268 -> ALVENARIA AUTO-PORTANTE | D23: =Orçamento!V268 -> 0 | E23: =Orçamento!X268 -> 0
B24: =Orçamento!O269 -> k. | C24: =Orçamento!P269 -> IMPERMEABILIZAÇÃO | D24: =Orçamento!V269 -> 0 | E24: =Orçamento!X269 -> 0
B25: =Orçamento!O270 -> l. | C25: =Orçamento!P270 -> ISOLAMENTO TÉRMICO E ACÚSTICO | D25: =Orçamento!V270 -> 0 | E25: =Orçamento!X270 -> 0
B26: =Orçamento!O271 -> m. | C26: =Orçamento!P271 -> ESTRUTURA DE MADEIRA | D26: =Orçamento!V271 -> 0 | E26: =Orçamento!X271 -> 0
B27: =Orçamento!O272 -> n. | C27: =Orçamento!P272 -> ESTRUTURAS METÁLICAS | D27: =Orçamento!V272 -> 0 | E27: =Orçamento!X272 -> 0
B28: =Orçamento!O273 -> o. | C28: =Orçamento!P273 -> COBERTURAS | D28: =Orçamento!V273 -> 0 | E28: =Orçamento!X273 -> 0
B29: =Orçamento!O274 -> p. | C29: =Orçamento!P274 -> ESQUADRIAS DE MADEIRA | D29: =Orçamento!V274 -> 0 | E29: =Orçamento!X274 -> 0
B30: =Orçamento!O275 -> q. | C30: =Orçamento!P275 -> ESQUADRIAS METÁLICAS | D30: =Orçamento!V275 -> 0 | E30: =Orçamento!X275 -> 0
B31: =Orçamento!O276 -> r. | C31: =Orçamento!P276 -> VIDROS | D31: =Orçamento!V276 -> 0 | E31: =Orçamento!X276 -> 0
B32: =Orçamento!O277 -> s. | C32: =Orçamento!P277 -> REVESTIMENTO DE PAREDE | D32: =Orçamento!V277 -> 0 | E32: =Orçamento!X277 -> 0
B33: =Orçamento!O278 -> t. | C33: =Orçamento!P278 -> FORROS | D33: =Orçamento!V278 -> 0 | E33: =Orçamento!X278 -> 0
B34: =Orçamento!O279 -> u. | C34: =Orçamento!P279 -> REVESTIMENTO DE PISO | D34: =Orçamento!V279 -> 0 | E34: =Orçamento!X279 -> 0
B35: =Orçamento!O280 -> v. | C35: =Orçamento!P280 -> FERRAGENS | D35: =Orçamento!V280 -> 0 | E35: =Orçamento!X280 -> 0
B36: =Orçamento!O281 -> w. | C36: =Orçamento!P281 -> MARCENARIA | D36: =Orçamento!V281 -> 0 | E36: =Orçamento!X281 -> 0
B37: =Orçamento!O282 -> x. | C37: =Orçamento!P282 -> ADMINISTRAÇÃO | D37: =Orçamento!V282 -> 0 | E37: =Orçamento!X282 -> 0
B38: =Orçamento!O283 -> y. | C38: =Orçamento!P283 -> PINTURA | D38: =Orçamento!V283 -> 0 | E38: =Orçamento!X283 -> 0
B39: =Orçamento!O284 -> z. | C39: =Orçamento!P284 -> DIVERSOS | D39: =Orçamento!V284 -> 0 | E39: =Orçamento!X284 -> 0
A40: F | B40: TOTAL GERAL DO ORÇAMENTO (R$) C/BDI | D40: =SUM(D14:D39) -> 0 | E40: =SUM(E14:E39) -> 0

Sheet Parc Maior Relev
B3: UNIDADE ESCOLAR | E3: CÓDIGO INEP
B4: =Orçamento!$O$5 -> CENTRO DE ENSINO EM PERÍODO INTEGRAL PROFESSORA IZABEL CHRISTINA DE SOUSA ORTIZ | E4: =Orçamento!$V$5 -> 52103498
B6: OBRA | E6: CIDADE
B7: =Orçamento!$O$8 -> REFORMA E AMPLIAÇÃO | E7: =Orçamento!$V$8 -> FORMOSA
B9: CRE | E9: ÁREA TOTAL CONSTRUÍDA (M²)
B10: =Orçamento!$O$11 -> FORMOSA | E10: =Orçamento!$V$14 -> 2960.79
A12: FILTRO | B12: PARCELA DE MAIOR RELEVÂNCIA
A13: =IF(G14>0,"F","") ->  | B13: CÓDIGO | C13: SERVIÇO | D13: DESCRIÇÃO | E13: UNID | F13: QUANT | G13: PARC. MAIOR RELEV (100%)
A14: =IF(G14>0,"F","") ->  | B14: =Somatório!B22 -> f. | C14: INSTALAÇÕES ELÉTRICAS | D14: SUBESTAÇÃO | E14: KVA | F14: =SUMIF(Orçamento!$R$21:$R$240,'Parc Maior Relev'!D14,Orçamento!$T$21:$T$240) -> 0 | G14: =F14 -> 0
A15: =IF(SUM(G16:G32)>0,"F","") -> F | B15: CÓDIGO | C15: SERVIÇO | D15: DESCRIÇÃO | E15: UNID | F15: QUANT | G15: PARC. MAIOR RELEV (50%)
A16: =IF(G16>0,"F","") ->  | B16: =Somatório!B21 -> e. | C16: ESTRUTURA | D16: CONCRETO | E16: M3 | F16: =SUMIF(Orçamento!$R$21:$R$240,'Parc Maior Relev'!D16,Orçamento!$T$21:$T$240) -> 0 | G16: =F16*0.5 -> 0
A17: =IF(G17>0,"F","") ->  | B17: f. | C17: INSTALAÇÕES ELÉTRICAS | D17: INSTALAÇÕES ELÉTRICAS | E17: KVA | F17: =SUMIF(Orçamento!$R$21:$R$240,'Parc Maior Relev'!D17,Orçamento!$T$21:$T$240) -> 0 | G17: =F17 -> 0
A18: =IF(G18>0,"F","") -> F | B18: =Somatório!B25 -> i. | C18: ALVENARIA E DIVISÓRIAS | D18: ALVENARIA DE TIJOLOS | E18: M2 | F18: =Orçamento!T189 -> 16.76 | G18: =F18*0.5 -> 8.38
B19: =Somatório!B29 -> m. | C19: ESTRUTURA DE MADEIRA | D19: ESTRUTURA DE MADEIRA | E19: M2 | F19: =SUMIF(Orçamento!$R$21:$R$240,'Parc Maior Relev'!D19,Orçamento!$T$21:$T$240) -> 0 | G19: 0
B20: =Somatório!B31 -> o. | C20: COBERTURAS | D20: COBERTURA CERÂMICA | E20: M2 | F20: =SUMIF(Orçamento!$R$21:$R$240,'Parc Maior Relev'!D20,Orçamento!$T$21:$T$240) -> 0 | G20: 0
B21: o. | C21: COBERTURAS | D21: COBERTURA COM TELHA METÁLICA | E21: M2 | F21: =SUMIF(Orçamento!$R$21:$R$240,'Parc Maior Relev'!D21,Orçamento!$T$21:$T$240) -> 0 | G21: 0
B22: =Somatório!B35 -> s. | C22: REVESTIMENTO DE PAREDE | D22: CHAPISCO | E22: M2 | F22: =SUMIF(Orçamento!$R$21:$R$240,'Parc Maior Relev'!D22,Orçamento!$T$21:$T$240) -> 0 | G22: 0
B23: s. | C23: REVESTIMENTO DE PAREDE | D23: REBOCO | E23: M2 | F23: =SUMIF(Orçamento!$R$21:$R$240,'Parc Maior Relev'!D23,Orçamento!$T$21:$T$240) -> 0 | G23: =F23*0.5 -> 0
A24: F | B24: s. | C24: REVESTIMENTO DE PAREDE | D24: REVESTIMENTO CERÂMICO | E24: M2 | F24: =Orçamento!T205+Orçamento!T208 -> 71.88 | G24: =F24*0.5 -> 35.94
B25: =Somatório!B36 -> t. | C25: FORROS | D25: FORRO DE GESSO | E25: M2 | F25: =SUMIF(Orçamento!$R$21:$R$240,'Parc Maior Relev'!D25,Orçamento!$T$21:$T$240) -> 0 | G25: =F25*0.5 -> 0
B26: t. | C26: FORROS | D26: FORRO DE PVC | E26: M2 | F26: =SUMIF(Orçamento!$R$21:$R$240,'Parc Maior Relev'!D26,Orçamento!$T$21:$T$240) -> 0 | G26: =F26*0.5 -> 0
B27: t. | C27: FORROS | D27: FORRO DE GESSO ACARTONADO | E27: M2 | F27: =SUMIF(Orçamento!$R$21:$R$240,'Parc Maior Relev'!D27,Orçamento!$T$21:$T$240) -> 0 | G27: =F27*0.5 -> 0
B28: u. | C28: REVESTIMENTO DE PISO | D28: PISO DE GRANITINA | E28: M2 | F28: =SUMIF(Orçamento!$R$21:$R$240,'Parc Maior Relev'!D28,Orçamento!$T$21:$T$240) -> 0 | G28: 0
B29: u. | C29: REVESTIMENTO DE PISO | D29: PISO LAMINADO | E29: M2 | F29: =SUMIF(Orçamento!$R$21:$R$240,'Parc Maior Relev'!D29,Orçamento!$T$21:$T$240) -> 0 | G29: 0
B30: u. | C30: REVESTIMENTO DE PISO | D30: PISO DE CONCRETO DESEMPENADO | E30: M2 | F30: =SUMIF(Orçamento!$R$21:$R$240,'Parc Maior Relev'!D30,Orçamento!$T$21:$T$240) -> 0 | G30: 0
B31: u. | C31: REVESTIMENTO DE PISO | D31: PISO CERÂMICO | E31: M2 | F31: =SUMIF(Orçamento!$R$21:$R$240,'Parc Maior Relev'!D31,Orçamento!$T$21:$T$240) -> 0 | G31: =F31*0.5 -> 0
B32: y. | C32: PINTURA | D32: PINTURA | E32: M2 | F32: =SUMIF(Orçamento!$R$21:$R$240,'Parc Maior Relev'!D32,Orçamento!$T$21:$T$240) -> 0 | G32: 0
A33: F
A34: F | B34: (*) Para os fins do inciso I dp § 1º do Art. 30 da Lei Federal 8.666/93, são consideradas parcelas de maior relevância técnica as execuções apresentadas
A35: F

Sheet Composições
A4: UNIDADE ESCOLAR | H4: CÓDIGO INEP
A5: =Orçamento!$O$5 -> CENTRO DE ENSINO EM PERÍODO INTEGRAL PROFESSORA IZABEL CHRISTINA DE SOUSA ORTIZ | H5: =Orçamento!$V$5 -> 52103498
A7: OBRA | H7: CIDADE
A8: =Orçamento!$O$8 -> REFORMA E AMPLIAÇÃO | H8: =Orçamento!$V$8 -> FORMOSA
A10: CRE | D10: ENDEREÇO | H10: REFERÊNCIA AGETOP
A11: =Orçamento!$O$11 -> FORMOSA | D11: =Orçamento!$R$11 -> RUA 65, PRAÇA N°04 S/N, PQ LAGO DE FORMOSA, CEP:73813-872 | H11: =Orçamento!$S$11 -> ABR/19 | I11: =Orçamento!$T$11 -> DESONERADA
A13: DATA | D13: ÁREA TOTAL CONSTRUÍDA (M²) | H13: REFERÊNCIA SINAPI
A14: =Orçamento!$S$8 -> 2020-03-19 | D14: =Orçamento!$V$14 -> 2960.79 | H14: =Orçamento!$V$11 -> NOV/19 | I14: =Orçamento!$W$11 -> DESONERADA
A16: COMPOSIÇÕES DE CUSTOS UNITÁRIOS - SEE-GO
A17: 24 | B17: FONTE | C17: CÓDIGO | D17: DESCRIÇÃO | E17: UNIDADE | F17: COEFIC. | G17: CUSTO UNITÁRIO | I17: CUSTO TOTAL (A) + (B) + (C) + (D) + (E)
G18: DESONERADO | H18: NÃO DESONER. | I18: DESONERADO | J18: NÃO DESONER.
B19: COMPOSIÇÃO | C19: COMP 024_SEE | D19: SINALIZADOR FOTOLUMINESCENTE PARA EXTINTOR | E19: UN | G19: - | H19: - | I19: 25.32 | J19: 25.44
B20: AGETOP_I | C20: 5 | D20: SERVENTE | E20: h | F20: 0.09 | G20: 8.75 | H20: 10.14 | I20: 0.79 | J20: 0.91
B21: MÃO DE OBRA (B) - TOTAL | I21: 0.79 | J21: 0.91
B22: AGETOP_I | C22: 3070 | D22: BUCHA DE NYLON S-6 | E22: un | F22: 2 | G22: 0.04 | H22: 0.04 | I22: 0.08 | J22: 0.08
B23: AGETOP_I | C23: 3393 | D23: PARAFUSO P/BUCHA S-6 | E23: un | F23: 2 | G23: 0.08 | H23: 0.08 | I23: 0.16 | J23: 0.16
B24: SINAPI_I | C24: 37556 | D24: PLACA DE SINALIZACAO DE SEGURANCA CONTRA INCENDIO, FOTOLUMINESCENTE, QUADRADA, *20 X 20* CM, EM PVC *2* MM ANTI-CHAMAS (SIMBOLOS, CORES E PICTOGRAMAS CONFORME NBR 13434) | E24: UN | F24: 1 | G24: 24.29 | H24: 24.29 | I24: 24.29 | J24: 24.29
B25: MATERIAL (C) - TOTAL | I25: 24.53 | J25: 24.53
A27: 25 | B27: FONTE | C27: CÓDIGO | D27: DESCRIÇÃO | E27: UNIDADE | F27: COEFIC. | G27: CUSTO UNITÁRIO | I27: CUSTO TOTAL (A) + (B) + (C) + (D) + (E)
G28: DESONERADO | H28: NÃO DESONER. | I28: DESONERADO | J28: NÃO DESONER.
B29: COMPOSIÇÃO | C29: COMP 025_SEE | D29: SINALIZADOR FOTOLUMINESCENTE DE EMERGÊNCIA | E29: UN | G29: - | H29: - | I29: 25.32 | J29: 25.44
B30: AGETOP_I | C30: 5 | D30: SERVENTE | E30: h | F30: 0.09 | G30: 8.75 | H30: 10.14 | I30: 0.79 | J30: 0.91
B31: MÃO DE OBRA (B) - TOTAL | I31: 0.79 | J31: 0.91
B32: AGETOP_I | C32: 3070 | D32: BUCHA DE NYLON S-6 | E32: un | F32: 2 | G32: 0.04 | H32: 0.04 | I32: 0.08 | J32: 0.08
B33: AGETOP_I | C33: 3393 | D33: PARAFUSO P/BUCHA S-6 | E33: un | F33: 2 | G33: 0.08 | H33: 0.08 | I33: 0.16 | J33: 0.16
B34: SINAPI_I | C34: 37556 | D34: PLACA DE SINALIZACAO DE SEGURANCA CONTRA INCENDIO, FOTOLUMINESCENTE, QUADRADA, *20 X 20* CM, EM PVC *2* MM ANTI-CHAMAS (SIMBOLOS, CORES E PICTOGRAMAS CONFORME NBR 13434) | E34: UN | F34: 1 | G34: 24.29 | H34: 24.29 | I34: 24.29 | J34: 24.29
B35: MATERIAL (C) - TOTAL | I35: 24.53 | J35: 24.53
A37: 382 | B37: FONTE | C37: CÓDIGO | D37: DESCRIÇÃO | E37: UNIDADE | F37: COEFIC. | G37: CUSTO UNITÁRIO | I37: CUSTO TOTAL (A) + (B) + (C) + (D) + (E)
G38: DESONERADO | H38: NÃO DESONER. | I38: DESONERADO | J38: NÃO DESONER.
B39: COMPOSIÇÃO | C39: COMP 382_SEE | D39: TE DE REDUCAO DE FERRO GALVANIZADO, COM ROSCA BSP, DE 3/4" X 1/2" | E39: UN | I39: 22.58 | J39: 24.76
B40: AGETOP_I | C40: 8 | D40: AJUDANTE | E40: h | F40: 0.6 | G40: 8.75 | H40: 10.14 | I40: 5.25 | J40: 6.08
B41: AGETOP_I | C41: 11 | D41: ENCANADOR | E41: h | F41: 0.6105 | G41: 13.95 | H41: 16.16 | I41: 8.52 | J41: 9.87
B42: MÃO DE OBRA (B) - TOTAL | I42: 13.77 | J42: 15.95
B43: SINAPI_I | C43: 3146 | D43: FITA VEDA ROSCA EM ROLOS DE 18 MM X 10 M (L X C) | E43: UN | F43: 0.120754717 | G43: 3.69 | H43: 3.69 | I43: 0.45 | J43: 0.45
B44: SINAPI_I | C44: 6302 | D44: TE DE REDUCAO DE FERRO GALVANIZADO, COM ROSCA BSP, DE 3/4" X 1/2" | E44: UN | F44: 1 | G44: 8.36 | H44: 8.36 | I44: 8.36 | J44: 8.36
B45: MATERIAL (C) - TOTAL | I45: 8.81 | J45: 8.81
A47: 383 | B47: FONTE | C47: CÓDIGO | D47: DESCRIÇÃO | E47: UNIDADE | F47: COEFIC. | G47: CUSTO UNITÁRIO | I47: CUSTO TOTAL (A) + (B) + (C) + (D) + (E)
G48: DESONERADO | H48: NÃO DESONER. | I48: DESONERADO | J48: NÃO DESONER.
B49: COMPOSIÇÃO | C49: COMP 383_SEE | D49: BUCHA DE REDUCAO DE FERRO GALVANIZADO, COM ROSCA BSP, DE 1/2" X 1/4" | E49: UN | I49: 7.05 | J49: 7.63
B50: AGETOP_I | C50: 8 | D50: AJUDANTE | E50: h | F50: 0.16 | G50: 8.75 | H50: 10.14 | I50: 1.4 | J50: 1.62
B51: AGETOP_I | C51: 11 | D51: ENCANADOR | E51: h | F51: 0.16 | G51: 13.95 | H51: 16.16 | I51: 2.23 | J51: 2.59
B52: MÃO DE OBRA (B) - TOTAL | I52: 3.63 | J52: 4.21
B53: AGETOP_I | C53: H689 | D53: FITA VEDAROSCA 12 MM | E53: m | F53: 1.2 | G53: 0.28 | H53: 0.28 | I53: 0.34 | J53: 0.34
B54: SINAPI_I | C54: 770 | D54: BUCHA DE REDUCAO DE FERRO GALVANIZADO, COM ROSCA BSP, DE 1/2" X 1/4" | E54: UN | F54: 1 | G54: 3.08 | H54: 3.08 | I54: 3.08 | J54: 3.08
B55: MATERIAL (C) - TOTAL | I55: 3.42 | J55: 3.42
A57: 212 | B57: FONTE | C57: CÓDIGO | D57: DESCRIÇÃO | E57: UNIDADE | F57: COEFIC. | G57: CUSTO UNITÁRIO | I57: CUSTO TOTAL (A) + (B) + (C) + (D) + (E)
G58: DESONERADO | H58: NÃO DESONER. | I58: DESONERADO | J58: NÃO DESONER.
B59: COMPOSIÇÃO | C59: COMP 212_SEE | D59: NIPLE DE REDUÇÃO 1/2" X 1/4" BSP | E59: UN | I59: 9.68 | J59: 10.26
B60: AGETOP_I | C60: 8 | D60: AJUDANTE | E60: h | F60: 0.16 | G60: 8.75 | H60: 10.14 | I60: 1.4 | J60: 1.62
B61: AGETOP_I | C61: 11 | D61: ENCANADOR | E61: h | F61: 0.16 | G61: 13.95 | H61: 16.16 | I61: 2.23 | J61: 2.59
B62: MÃO DE OBRA (B) - TOTAL | I62: 3.63 | J62: 4.21
B63: COTAÇÃO | C63: COT 103_SEE | D63: NIPLE DE REDUÇÃO 1/2" X 1/4" BSP | E63: UN | F63: 1 | G63: 6.053333333 | H63: 6.053333333 | I63: 6.05 | J63: 6.05
B64: MATERIAL (C) - TOTAL | I64: 6.05 | J64: 6.05
A66: 213 | B66: FONTE | C66: CÓDIGO | D66: DESCRIÇÃO | E66: UNIDADE | F66: COEFIC. | G66: CUSTO UNITÁRIO | I66: CUSTO TOTAL (A) + (B) + (C) + (D) + (E)
G67: DESONERADO | H67: NÃO DESONER. | I67: DESONERADO | J67: NÃO DESONER.
B68: COMPOSIÇÃO | C68: COMP 213_SEE | D68: NIPLE DE REDUÇÃO 3/4" X 1/2" BSP | E68: UN | I68: 13.34 | J68: 13.92
B69: AGETOP_I | C69: 8 | D69: AJUDANTE | E69: h | F69: 0.16 | G69: 8.75 | H69: 10.14 | I69: 1.4 | J69: 1.62
B70: AGETOP_I | C70: 11 | D70: ENCANADOR | E70: h | F70: 0.16 | G70: 13.95 | H70: 16.16 | I70: 2.23 | J70: 2.59
B71: MÃO DE OBRA (B) - TOTAL | I71: 3.63 | J71: 4.21
B72: COTAÇÃO | C72: COT 104_SEE | D72: NIPLE DE REDUÇÃO 3/4" X 1/2" BSP | E72: UN | F72: 1 | G72: 9.71 | H72: 9.71 | I72: 9.71 | J72: 9.71
B73: MATERIAL (C) - TOTAL | I73: 9.71 | J73: 9.71
A75: 237 | B75: FONTE | C75: CÓDIGO | D75: DESCRIÇÃO | E75: UNIDADE | F75: COEFIC. | G75: CUSTO UNITÁRIO | I75: CUSTO TOTAL (A) + (B) + (C) + (D) + (E)
G76: DESONERADO | H76: NÃO DESONER. | I76: DESONERADO | J76: NÃO DESONER.
B77: COMPOSIÇÃO | C77: COMP 237_SEE | D77: FITA ANTICORROSIVA | E77: M | I77: 11.73 | J77: 12.45
B78: AGETOP_I | C78: 8 | D78: AJUDANTE | E78: h | F78: 0.2 | G78: 8.75 | H78: 10.14 | I78: 1.75 | J78: 2.03
B79: AGETOP_I | C79: 12 | D79: ELETRICISTA | E79: h | F79: 0.2 | G79: 13.95 | H79: 16.16 | I79: 2.79 | J79: 3.23
B80: MÃO DE OBRA (B) - TOTAL | I80: 4.54 | J80: 5.26
B81: SINAPI_I | C81: 39634 | D81: FITA ADESIVA ANTICORROSIVA DE PVC FLEXIVEL, COR PRETA, PARA PROTECAO TUBULACAO, 50 MM X 30 M (L X C), E= *0,25* MM | E81: M | F81: 1 | G81: 7.19 | H81: 7.19 | I81: 7.19 | J81: 7.19
B82: MATERIAL (C) - TOTAL | I82: 7.19 | J82: 7.19
A84: 542 | B84: FONTE | C84: CÓDIGO | D84: DESCRIÇÃO | E84: UNIDADE | F84: COEFIC. | G84: CUSTO UNITÁRIO | I84: CUSTO TOTAL (A) + (B) + (C) + (D) + (E)
G85: DESONERADO | H85: NÃO DESONER. | I85: DESONERADO | J85: NÃO DESONER.
B86: COMPOSIÇÃO | C86: COMP 542_SEE | D86: VÁLVULA UGV 3/4" (S) LATÃO | E86: UN | I86: 25.65 | J86: 27.2
B87: AGETOP_I | C87: 8 | D87: AJUDANTE | E87: h | F87: 0.432 | G87: 8.75 | H87: 10.14 | I87: 3.78 | J87: 4.38
B88: AGETOP_I | C88: 11 | D88: ENCANADOR | E88: h | F88: 0.432 | G88: 13.95 | H88: 16.16 | I88: 6.03 | J88: 6.98
B89: MÃO DE OBRA (B) - TOTAL | I89: 9.81 | J89: 11.36
B90: COTAÇÃO | C90: COT 281_SEE | D90: VÁLVULA UGV 3/4" (S) LATÃO | E90: UN | F90: 1 | G90: 15.83666667 | H90: 15.83666667 | I90: 15.84 | J90: 15.84
B91: MATERIAL (C) - TOTAL | I91: 15.84 | J91: 15.84
A93: 543 | B93: FONTE | C93: CÓDIGO | D93: DESCRIÇÃO | E93: UNIDADE | F93: COEFIC. | G93: CUSTO UNITÁRIO | I93: CUSTO TOTAL (A) + (B) + (C) + (D) + (E)
G94: DESONERADO | H94: NÃO DESONER. | I94: DESONERADO | J94: NÃO DESONER.
B95: COMPOSIÇÃO | C95: COMP 543_SEE | D95: VÁLVULA UGV 1/2" (S) LATÃO | E95: UN | I95: 24.98 | J95: 26.53
B96: AGETOP_I | C96: 8 | D96: AJUDANTE | E96: h | F96: 0.432 | G96: 8.75 | H96: 10.14 | I96: 3.78 | J96: 4.38
B97: AGETOP_I | C97: 11 | D97: ENCANADOR | E97: h | F97: 0.432 | G97: 13.95 | H97: 16.16 | I97: 6.03 | J97: 6.98
B98: MÃO DE OBRA (B) - TOTAL | I98: 9.81 | J98: 11.36
B99: COTAÇÃO | C99: COT 282_SEE | D99: VÁLVULA UGV 1/2" (S) LATÃO | E99: UN | F99: 1 | G99: 15.16666667 | H99: 15.16666667 | I99: 15.17 | J99: 15.17
B100: MATERIAL (C) - TOTAL | I100: 15.17 | J100: 15.17
A102: 211 | B102: FONTE | C102: CÓDIGO | D102: DESCRIÇÃO | E102: UNIDADE | F102: COEFIC. | G102: CUSTO UNITÁRIO | I102: CUSTO TOTAL (A) + (B) + (C) + (D) + (E)
G103: DESONERADO | H103: NÃO DESONER. | I103: DESONERADO | J103: NÃO DESONER.
B104: COMPOSIÇÃO | C104: COMP 211_SEE | D104: REGULADOR DE 2º ESTÁGIO 5KG/H | E104: UN | I104: 86.72 | J104: 90.86
B105: AGETOP_I | C105: 8 | D105: AJUDANTE | E105: h | F105: 1.15 | G105: 8.75 | H105: 10.14 | I105: 10.06 | J105: 11.66
B106: AGETOP_I | C106: 11 | D106: ENCANADOR | E106: h | F106: 1.15 | G106: 13.95 | H106: 16.16 | I106: 16.04 | J106: 18.58
B107: MÃO DE OBRA (B) - TOTAL | I107: 26.1 | J107: 30.24
B108: COTAÇÃO | C108: COT 102_SEE | D108: REGULADOR DE 2º ESTÁGIO 5KG/H | E108: UN | F108: 1 | G108: 59.83333333 | H108: 59.83333333 | I108: 59.83 | J108: 59.83
B109: AGETOP_I | C109: H689 | D109: FITA VEDAROSCA 12 MM | E109: m | F109: 2.82 | G109: 0.28 | H109: 0.28 | I109: 0.79 | J109: 0.79
B110: MATERIAL (C) - TOTAL | I110: 60.62 | J110: 60.62
A112: 210 | B112: FONTE | C112: CÓDIGO | D112: DESCRIÇÃO | E112: UNIDADE | F112: COEFIC. | G112: CUSTO UNITÁRIO | I112: CUSTO TOTAL (A) + (B) + (C) + (D) + (E)
G113: DESONERADO | H113: NÃO DESONER. | I113: DESONERADO | J113: NÃO DESONER.
B114: COMPOSIÇÃO | C114: COMP 210_SEE | D114: REGULADOR DE 1º ESTÁGIO 60KG/H MODELO AP-40 COM MANÔMETRO | E114: UN | I114: 232.47 | J114: 236.61
B115: AGETOP_I | C115: 8 | D115: AJUDANTE | E115: h | F115: 1.15 | G115: 8.75 | H115: 10.14 | I115: 10.06 | J115: 11.66
B116: AGETOP_I | C116: 11 | D116: ENCANADOR | E116: h | F116: 1.15 | G116: 13.95 | H116: 16.16 | I116: 16.04 | J116: 18.58
B117: MÃO DE OBRA (B) - TOTAL | I117: 26.1 | J117: 30.24
B118: COTAÇÃO | C118: COT 101_SEE | D118: REGULADOR DE 1º ESTÁGIO 60KG/H MODELO AP-40 COM MANÔMETRO | E118: UN | F118: 1 | G118: 205.5766667 | H118: 205.5766667 | I118: 205.58 | J118: 205.58
B119: AGETOP_I | C119: H689 | D119: FITA VEDAROSCA 12 MM | E119: m | F119: 2.82 | G119: 0.28 | H119: 0.28 | I119: 0.79 | J119: 0.79
B120: MATERIAL (C) - TOTAL | I120: 206.37 | J120: 206.37
A122: 235 | B122: FONTE | C122: CÓDIGO | D122: DESCRIÇÃO | E122: UNIDADE | F122: COEFIC. | G122: CUSTO UNITÁRIO | I122: CUSTO TOTAL (A) + (B) + (C) + (D) + (E)
G123: DESONERADO | H123: NÃO DESONER. | I123: DESONERADO | J123: NÃO DESONER.
B124: COMPOSIÇÃO | C124: COMP 235_SEE | D124: PLACA DE SINALIZAÇÃO EM PVC COD 01 - (300X300) PROIBIDO FUMAR | E124: UN | I124: 25.32 | J124: 25.44
B125: AGETOP_I | C125: 5 | D125: SERVENTE | E125: h | F125: 0.09 | G125: 8.75 | H125: 10.14 | I125: 0.79 | J125: 0.91
B126: MÃO DE OBRA (B) - TOTAL | I126: 0.79 | J126: 0.91
B127: AGETOP_I | C127: 3070 | D127: BUCHA DE NYLON S-6 | E127: un | F127: 2 | G127: 0.04 | H127: 0.04 | I127: 0.08 | J127: 0.08
B128: AGETOP_I | C128: 3393 | D128: PARAFUSO P/BUCHA S-6 | E128: un | F128: 2 | G128: 0.08 | H128: 0.08 | I128: 0.16 | J128: 0.16
B129: SINAPI_I | C129: 37556 | D129: PLACA DE SINALIZACAO DE SEGURANCA CONTRA INCENDIO, FOTOLUMINESCENTE, QUADRADA, *20 X 20* CM, EM PVC *2* MM ANTI-CHAMAS (SIMBOLOS, CORES E PICTOGRAMAS CONFORME NBR 13434) | E129: UN | F129: 1 | G129: 24.29 | H129: 24.29 | I129: 24.29 | J129: 24.29
B130: MATERIAL (C) - TOTAL | I130: 24.53 | J130: 24.53
A132: 236 | B132: FONTE | C132: CÓDIGO | D132: DESCRIÇÃO | E132: UNIDADE | F132: COEFIC. | G132: CUSTO UNITÁRIO | I132: CUSTO TOTAL (A) + (B) + (C) + (D) + (E)
G133: DESONERADO | H133: NÃO DESONER. | I133: DESONERADO | J133: NÃO DESONER.
B134: COMPOSIÇÃO | C134: COMP 236_SEE | D134: PLACA DE SINALIZAÇÃO EM PVC COD 06 - (300X300) PERIGO INFLAMÁVEL | E134: UN | I134: 25.32 | J134: 25.44
B135: AGETOP_I | C135: 5 | D135: SERVENTE | E135: h | F135: 0.09 | G135: 8.75 | H135: 10.14 | I135: 0.79 | J135: 0.91
B136: MÃO DE OBRA (B) - TOTAL | I136: 0.79 | J136: 0.91
B137: AGETOP_I | C137: 3070 | D137: BUCHA DE NYLON S-6 | E137: un | F137: 2 | G137: 0.04 | H137: 0.04 | I137: 0.08 | J137: 0.08
B138: AGETOP_I | C138: 3393 | D138: PARAFUSO P/BUCHA S-6 | E138: un | F138: 2 | G138: 0.08 | H138: 0.08 | I138: 0.16 | J138: 0.16
B139: SINAPI_I | C139: 37556 | D139: PLACA DE SINALIZACAO DE SEGURANCA CONTRA INCENDIO, FOTOLUMINESCENTE, QUADRADA, *20 X 20* CM, EM PVC *2* MM ANTI-CHAMAS (SIMBOLOS, CORES E PICTOGRAMAS CONFORME NBR 13434) | E139: UN | F139: 1 | G139: 24.29 | H139: 24.29 | I139: 24.29 | J139: 24.29
B140: MATERIAL (C) - TOTAL | I140: 24.53 | J140: 24.53
A142: 45 | B142: FONTE | C142: CÓDIGO | D142: DESCRIÇÃO | E142: UNIDADE | F142: COEFIC. | G142: CUSTO UNITÁRIO | I142: CUSTO TOTAL (A) + (B) + (C) + (D) + (E)
G143: DESONERADO | H143: NÃO DESONER. | I143: DESONERADO | J143: NÃO DESONER.
B144: COMPOSIÇÃO | C144: COMP 045_SEE | D144: LAUDO DE ESTANQUEIDADE | E144: UN | I144: 936 | J144: 1085.12
B145: AGETOP | C145: 250101 | D145: ENGENHEIRO - (OBRAS CIVIS) | E145: H | F145: 16 | G145: 58.5 | H145: 67.82 | I145: 936 | J145: 1085.12
B146: MÃO DE OBRA (B) - TOTAL | I146: 936 | J146: 1085.12
B147: MATERIAL (C) - TOTAL | I147: 0 | J147: 0
